Body Name,Body,Service Division Label,Service Division Code,Organisational Unit,Expenditure Category,Expenditure Code,CIPFA detailed expediture type,CIPFA detailed expediture code,Narrative,Date,Transaction number,Net Amount,Capital and Revenue,Supplier Name,Supplier ID
Chorley Borough Council,http://statistics.data.gov.uk/id/local-authority/30UE,Elections,1012,Policy & Governance,Rent/Hire Of Premises,20017,Premises Rents,5007,room hire for polling station 3 May 2018,04/07/2018,130684,463.50,Revenue,Active Nation UK Ltd,17144
Chorley Borough Council,http://statistics.data.gov.uk/id/local-authority/30UE,Democratic Represent and  Mgnt,1007,Business Development & Growth,Other Fees,40212,Miscellaneous Expenses,5034,repayment of bond,18/07/2018,131047,"2,000.00",Revenue,Adlington & District Carnival Committee Ltd,67051
Chorley Borough Council,http://statistics.data.gov.uk/id/local-authority/30UE,Unapportionable Central OHeads,1009,Business Development & Growth,Fire Alarms,20072,Fixtures and Fittings,5010,Annual contract for Fire Alarms April 18-March19,11/07/2018,130669,"6,272.26",Revenue,ADT Fire & Security,16645
Chorley Borough Council,http://statistics.data.gov.uk/id/local-authority/30UE,Unapportionable Central OHeads,1009,Business Development & Growth,Burglar Alarms & Security Systems,20075,Fixtures and Fittings,5010,Annual contract for intruder and Security April18-March 19,11/07/2018,130669,"28,775.79",Revenue,ADT Fire & Security,16645
Chorley Borough Council,http://statistics.data.gov.uk/id/local-authority/30UE,Business Support,1095,Business Development & Growth,Tools & Equipment - Purchase,40003,"Equipment, Furniture & Materia",5023,Job/Quote number 146903/1 To supply and install & commission an extension to an ADT closed circuit television system,20/07/2018,131074,"13,867.00",Revenue,ADT Fire & Security,16645
Chorley Borough Council,http://statistics.data.gov.uk/id/local-authority/30UE,Unapportionable Central OHeads,1009,Business Development & Growth,Fire Alarms,20072,Fixtures and Fittings,5010,match against credit 38514378 - 10,25/07/2018,131152,"1,165.98",Revenue,ADT Fire & Security,16645
Chorley Borough Council,http://statistics.data.gov.uk/id/local-authority/30UE,Capital,Capital,Business Development & Growth,Architects Fees,3022,Capital Expenditure,Capital,Tenant liaison service from April 2018 to September 2019,20/07/2018,131151,"6,106.25",Capital,AEW Architects & Designers Ltd,66520
Chorley Borough Council,http://statistics.data.gov.uk/id/local-authority/30UE,Community Development,1097,Policy & Governance,Core Funding Grants,40133,Grants and Subscriptions,5031,Provision of Support for Older People for 2018/19,20/07/2018,131094,"5,000.00",Revenue,Age UK,21252
Chorley Borough Council,http://statistics.data.gov.uk/id/local-authority/30UE,Unapportionable Central OHeads,1009,Customer & Digital,Bank Charges,40151,Miscellaneous Expenses,5034,additional fee,18/07/2018,130981,10.37,Revenue,Allpay Net Ltd,17242
Chorley Borough Council,http://statistics.data.gov.uk/id/local-authority/30UE,Unapportionable Central OHeads,1009,Customer & Digital,Bank Charges,40151,Miscellaneous Expenses,5034,post office,18/07/2018,130981,980.05,Revenue,Allpay Net Ltd,17242
Chorley Borough Council,http://statistics.data.gov.uk/id/local-authority/30UE,Unapportionable Central OHeads,1009,Customer & Digital,Bank Charges,40151,Miscellaneous Expenses,5034,paypoint,18/07/2018,130981,609.68,Revenue,Allpay Net Ltd,17242
Chorley Borough Council,http://statistics.data.gov.uk/id/local-authority/30UE,Unapportionable Central OHeads,1009,Customer & Digital,Bank Charges,40151,Miscellaneous Expenses,5034,webconnect,18/07/2018,130981,47.72,Revenue,Allpay Net Ltd,17242
Chorley Borough Council,http://statistics.data.gov.uk/id/local-authority/30UE,Unapportionable Central OHeads,1009,Policy & Governance,Planned Maintenance,20006,Repairs Maintenance & Alts,5005,mayor,18/07/2018,130804,380.40,Revenue,Alphabet (Uk) Fleet Management Ltd,16651
Chorley Borough Council,http://statistics.data.gov.uk/id/local-authority/30UE,Unapportionable Central OHeads,1009,Policy & Governance,Car Leasing Payment,14100,Direct Employee Expenses,5001,NAME REDACTED,18/07/2018,130804,180.30,Revenue,Alphabet (Uk) Fleet Management Ltd,16651
Chorley Borough Council,http://statistics.data.gov.uk/id/local-authority/30UE,Unapportionable Central OHeads,1009,Policy & Governance,Car Leasing Payment,14100,Direct Employee Expenses,5001,,18/07/2018,130804,16.38,Revenue,Alphabet (Uk) Fleet Management Ltd,16651
Chorley Borough Council,http://statistics.data.gov.uk/id/local-authority/30UE,Democratic Represent and  Mgnt,1007,Business Development & Growth,Rent/Hire Of Premises,20017,Premises Rents,5007,RENT July - Sept 2018,18/07/2018,130761,"10,625.00",Revenue,Alston Properties Ltd,77241
Chorley Borough Council,http://statistics.data.gov.uk/id/local-authority/30UE,Central Support Services,1009,Early Intervention,Children's Activities,40188,Miscellaneous Expenses,5034,Activity Half Day with Extra Instructor (Peak) INSTR06 Recommended for groups with additional/special needs,04/07/2018,130575,270.40,Revenue,Anderton Centre - LOAI,56108
Chorley Borough Council,http://statistics.data.gov.uk/id/local-authority/30UE,Business Support,1095,Business Development & Growth,Grants To Other Organisations,40127,Grants and Subscriptions,5031,starting in business grant,06/07/2018,130762,250.00,Revenue,NAME REDACTED,77431
Chorley Borough Council,http://statistics.data.gov.uk/id/local-authority/30UE,Unapportionable Central OHeads,1009,Policy & Governance,Car Leasing Payment,14100,Direct Employee Expenses,5001,NAME REDACTED,04/07/2018,130481,"1,928.52",Revenue,Arnold Clark Finance Ltd,20685
Chorley Borough Council,http://statistics.data.gov.uk/id/local-authority/30UE,Unapportionable Central OHeads,1009,Policy & Governance,Car Leasing Payment,14100,Direct Employee Expenses,5001,,04/07/2018,130481,157.15,Revenue,Arnold Clark Finance Ltd,20685
Chorley Borough Council,http://statistics.data.gov.uk/id/local-authority/30UE,Unapportionable Central OHeads,1009,Policy & Governance,Car Leasing Payment,14100,Direct Employee Expenses,5001,NAME REDACTED,18/07/2018,130763,178.51,Revenue,Arnold Clark Finance Ltd,20685
Chorley Borough Council,http://statistics.data.gov.uk/id/local-authority/30UE,Unapportionable Central OHeads,1009,Policy & Governance,Car Leasing Payment,14100,Direct Employee Expenses,5001,,18/07/2018,130763,13.96,Revenue,Arnold Clark Finance Ltd,20685
Chorley Borough Council,http://statistics.data.gov.uk/id/local-authority/30UE,Service Management & Support,1009,Policy & Governance,Car Leasing Payment,14100,Direct Employee Expenses,5001,NAME REDACTED,18/07/2018,130763,245.19,Revenue,Arnold Clark Finance Ltd,20685
Chorley Borough Council,http://statistics.data.gov.uk/id/local-authority/30UE,Service Management & Support,1009,Policy & Governance,Car Leasing Payment,14100,Direct Employee Expenses,5001,,18/07/2018,130763,18.18,Revenue,Arnold Clark Finance Ltd,20685
Chorley Borough Council,http://statistics.data.gov.uk/id/local-authority/30UE,Unapportionable Central OHeads,1009,Policy & Governance,Car Leasing Payment,14100,Direct Employee Expenses,5001,3775459 Driver: NAME REDACTED Audi A1 - 1.0 TFSI Sport Nav 5 Door S Tronic Hatchback Automatic Petrol Body colour: black,18/07/2018,130937,"2,707.68",Revenue,Arnold Clark Finance Ltd,20685
Chorley Borough Council,http://statistics.data.gov.uk/id/local-authority/30UE,Unapportionable Central OHeads,1009,Policy & Governance,Car Leasing Payment,14100,Direct Employee Expenses,5001,,18/07/2018,130937,246.62,Revenue,Arnold Clark Finance Ltd,20685
Chorley Borough Council,http://statistics.data.gov.uk/id/local-authority/30UE,Service Management & Support,1009,Customer & Digital,Vehicles and Plant Maintenance,30045,Direct Transport Costs,5016,Drive shaft for 1545 - from engine to the cutting deck,11/07/2018,130553,447.08,Revenue,Balmers Garden Machinery,17075
Chorley Borough Council,http://statistics.data.gov.uk/id/local-authority/30UE,Service Management & Support,1009,Customer & Digital,Supplies - Workshop,40246,"Equipment, Furniture & Materia",5023,as per quotation Q13088; JD-CH11550 BALL BEARING,11/07/2018,130553,42.54,Revenue,Balmers Garden Machinery,17075
Chorley Borough Council,http://statistics.data.gov.uk/id/local-authority/30UE,Service Management & Support,1009,Customer & Digital,Purchase of Plant,40000,"Equipment, Furniture & Materia",5023,quote17295327 submitted by NAME REDACTED JOHN DEERE 1580 (MY17) full road kit JOHN DEERE 62 Rear Discharge Deck,11/07/2018,130713,"20,300.00",Revenue,Balmers Garden Machinery,17075
Chorley Borough Council,http://statistics.data.gov.uk/id/local-authority/30UE,Corporate Management,1008,Policy & Governance,Bank Charges,40151,Miscellaneous Expenses,5034,,04/07/2018,130245,"1,546.14",Revenue,Barclaycard Merchant Services,61601
Chorley Borough Council,http://statistics.data.gov.uk/id/local-authority/30UE,Corporate Management,1008,Policy & Governance,Bank Charges,40151,Miscellaneous Expenses,5034,,04/07/2018,130246,503.79,Revenue,Barclaycard Merchant Services,61601
Chorley Borough Council,http://statistics.data.gov.uk/id/local-authority/30UE,Corporate Management,1008,Policy & Governance,Bank Charges,40151,Miscellaneous Expenses,5034,,04/07/2018,130247,810.50,Revenue,Barclaycard Merchant Services,61601
Chorley Borough Council,http://statistics.data.gov.uk/id/local-authority/30UE,Homelessness,1075,Early Intervention,Laundry,40042,"Clothing, Uniforms and Laundry",5025,Weekly linen Service,11/07/2018,130805,423.97,Revenue,Berendsen UK Ltd,20799
Chorley Borough Council,http://statistics.data.gov.uk/id/local-authority/30UE,Central Support Services,1009,Policy & Governance,External Contractor,40198,Miscellaneous Expenses,5034,provision of payroll services 2018/2019,27/07/2018,131050,"1,078.80",Revenue,Blackpool Borough Council,16518
Chorley Borough Council,http://statistics.data.gov.uk/id/local-authority/30UE,Central Support Services,1009,Policy & Governance,External Contractor,40198,Miscellaneous Expenses,5034,provision of payroll services 2018/2019,27/07/2018,131051,"6,843.06",Revenue,Blackpool Borough Council,16518
Chorley Borough Council,http://statistics.data.gov.uk/id/local-authority/30UE,Business Support,1095,Business Development & Growth,Miscellaneous Expenses,40200,Miscellaneous Expenses,5034,For procurement support on Digital Office Park project (outside of original remit) @ 875 per day including expenses.,06/07/2018,130732,"4,410.20",Revenue,Brian Farrington Ltd,16822
Chorley Borough Council,http://statistics.data.gov.uk/id/local-authority/30UE,Business Support,1095,Business Development & Growth,Miscellaneous Expenses,40200,Miscellaneous Expenses,5034,For procurement support on Digital Office Park project (outside of original remit) @ 875 per day including expenses.,06/07/2018,130740,"1,064.00",Revenue,Brian Farrington Ltd,16822
Chorley Borough Council,http://statistics.data.gov.uk/id/local-authority/30UE,Service Management & Support,1009,Customer & Digital,Supplies-Grounds Maintenance,40025,"Equipment, Furniture & Materia",5023,"Emptying of interceptor tanks and clearing/jetting drains at Bengal St Depot, to comply with EA Licence conditions, at the agreed",25/07/2018,130764,325.00,Revenue,C J Lyon,16579
Chorley Borough Council,http://statistics.data.gov.uk/id/local-authority/30UE,Unapportionable Central OHeads,1009,Customer & Digital,Emergency Call Out System,40096,Communication and Computing,5028,Out of hours call charges June 2018,06/07/2018,130735,405.72,Revenue,CallCare Ltd,20257
Chorley Borough Council,http://statistics.data.gov.uk/id/local-authority/30UE,Unapportionable Central OHeads,1009,Customer & Digital,Emergency Call Out System,40096,Communication and Computing,5028,Out of hours standing charge August 2018 (including bank holidays),06/07/2018,130735,170.00,Revenue,CallCare Ltd,20257
Chorley Borough Council,http://statistics.data.gov.uk/id/local-authority/30UE,Unapportionable Central OHeads,1009,Policy & Governance,Refuse Collection,20037,Cleaning and Domestic Supplies,5012,"Provision of all services to Council sites Fragrances, mats, medical waste, vending machines April 18 to March 19",04/07/2018,130654,"1,514.49",Revenue,Cannon Hygiene Limited,18158
Chorley Borough Council,http://statistics.data.gov.uk/id/local-authority/30UE,Parking Services,1066,Business Development & Growth,External Contractors,50008,Private Contractors,5042,Processing 074 - Provision of Notice. Processing Services period 01.04.18 31.03.19 Notice Processing Services Automated Telep,13/07/2018,130859,"1,009.77",Revenue,Chipside Ltd,22063
Chorley Borough Council,http://statistics.data.gov.uk/id/local-authority/30UE,Parking Services,1066,Business Development & Growth,External Contractors,50008,Private Contractors,5042,Processing 086 - Other Correspondence Postage & Packing (such as responses to Pre & Post NTO/CC/OofR etc). (estimated) ,13/07/2018,130859,145.20,Revenue,Chipside Ltd,22063
Chorley Borough Council,http://statistics.data.gov.uk/id/local-authority/30UE,Corporate Management,1008,Customer & Digital,Other Contributions,40145,Grants and Subscriptions,5031,PLRG,18/07/2018,131069,"3,392.40",Revenue,NAME REDACTED,77466
Chorley Borough Council,http://statistics.data.gov.uk/id/local-authority/30UE,Tourism,1039,Policy & Governance,Miscellaneous Expenses,40200,Miscellaneous Expenses,5034,prize money,20/07/2018,131046,930.00,Revenue,Chorley & District Gardening Society,21287
Chorley Borough Council,http://statistics.data.gov.uk/id/local-authority/30UE,Corporate Management,1008,Early Intervention,Taxi Testing & Vehicle Safety Report,40234,Services,5027,mot,11/07/2018,130938,493.65,Revenue,Chorley Autocare Ltd,17110
Chorley Borough Council,http://statistics.data.gov.uk/id/local-authority/30UE,Corporate Management,1008,Early Intervention,Taxi Testing & Vehicle Safety Report,40234,Services,5027,taxi test,11/07/2018,130938,76.95,Revenue,Chorley Autocare Ltd,17110
Chorley Borough Council,http://statistics.data.gov.uk/id/local-authority/30UE,Elections,1012,Chief Executive,Tools & Equipment - Purchase,40003,"Equipment, Furniture & Materia",5023,gauntlets,27/07/2018,131329,4.16,Revenue,Chorley BC Petty Cash,16301
Chorley Borough Council,http://statistics.data.gov.uk/id/local-authority/30UE,Democratic Represent and  Mgnt,1007,Chief Executive,Use Of Transport - Mayoral Car,30015,Transport Recharges,5017,car wash,27/07/2018,131329,10.00,Revenue,Chorley BC Petty Cash,16301
Chorley Borough Council,http://statistics.data.gov.uk/id/local-authority/30UE,Unapportionable Central OHeads,1009,Chief Executive,Tools & Equipment - Purchase,40003,"Equipment, Furniture & Materia",5023,keys,27/07/2018,131329,10.00,Revenue,Chorley BC Petty Cash,16301
Chorley Borough Council,http://statistics.data.gov.uk/id/local-authority/30UE,Unapportionable Central OHeads,1009,Chief Executive,Tools & Equipment - Purchase,40003,"Equipment, Furniture & Materia",5023,keys,27/07/2018,131329,12.25,Revenue,Chorley BC Petty Cash,16301
Chorley Borough Council,http://statistics.data.gov.uk/id/local-authority/30UE,Economic Development,1096,Chief Executive,Miscellaneous Expenses,40200,Miscellaneous Expenses,5034,refershments,27/07/2018,131329,3.33,Revenue,Chorley BC Petty Cash,16301
Chorley Borough Council,http://statistics.data.gov.uk/id/local-authority/30UE,Parking Services,1066,Chief Executive,Miscellaneous Expenses,40200,Miscellaneous Expenses,5034,test ticket,27/07/2018,131329,1.00,Revenue,Chorley BC Petty Cash,16301
Chorley Borough Council,http://statistics.data.gov.uk/id/local-authority/30UE,Democratic Represent and  Mgnt,1007,Chief Executive,Use Of Transport - Mayoral Car,30015,Transport Recharges,5017,car wash,27/07/2018,131329,6.00,Revenue,Chorley BC Petty Cash,16301
Chorley Borough Council,http://statistics.data.gov.uk/id/local-authority/30UE,Unapportionable Central OHeads,1009,Chief Executive,Tools & Equipment - Purchase,40003,"Equipment, Furniture & Materia",5023,airer,27/07/2018,131329,10.83,Revenue,Chorley BC Petty Cash,16301
Chorley Borough Council,http://statistics.data.gov.uk/id/local-authority/30UE,Central Support Services,1009,Chief Executive,Miscellaneous Expenses,40200,Miscellaneous Expenses,5034,ingerd,27/07/2018,131329,19.14,Revenue,Chorley BC Petty Cash,16301
Chorley Borough Council,http://statistics.data.gov.uk/id/local-authority/30UE,Central Support Services,1009,Chief Executive,Miscellaneous Expenses,40200,Miscellaneous Expenses,5034,ingred,27/07/2018,131329,19.43,Revenue,Chorley BC Petty Cash,16301
Chorley Borough Council,http://statistics.data.gov.uk/id/local-authority/30UE,Central Support Services,1009,Chief Executive,Miscellaneous Expenses,40200,Miscellaneous Expenses,5034,ingred,27/07/2018,131329,19.57,Revenue,Chorley BC Petty Cash,16301
Chorley Borough Council,http://statistics.data.gov.uk/id/local-authority/30UE,Unapportionable Central OHeads,1009,Chief Executive,Tools & Equipment - Purchase,40003,"Equipment, Furniture & Materia",5023,handle,27/07/2018,131329,7.71,Revenue,Chorley BC Petty Cash,16301
Chorley Borough Council,http://statistics.data.gov.uk/id/local-authority/30UE,Unapportionable Central OHeads,1009,Chief Executive,Tools & Equipment - Purchase,40003,"Equipment, Furniture & Materia",5023,keys,27/07/2018,131329,5.00,Revenue,Chorley BC Petty Cash,16301
Chorley Borough Council,http://statistics.data.gov.uk/id/local-authority/30UE,Democratic Represent and  Mgnt,1007,Chief Executive,Use Of Transport - Mayoral Car,30015,Transport Recharges,5017,car wash,27/07/2018,131329,6.00,Revenue,Chorley BC Petty Cash,16301
Chorley Borough Council,http://statistics.data.gov.uk/id/local-authority/30UE,Central Support Services,1009,Chief Executive,Miscellaneous Expenses,40200,Miscellaneous Expenses,5034,materials,27/07/2018,131329,12.49,Revenue,Chorley BC Petty Cash,16301
Chorley Borough Council,http://statistics.data.gov.uk/id/local-authority/30UE,Central Support Services,1009,Chief Executive,Miscellaneous Expenses,40200,Miscellaneous Expenses,5034,toaster,27/07/2018,131329,11.67,Revenue,Chorley BC Petty Cash,16301
Chorley Borough Council,http://statistics.data.gov.uk/id/local-authority/30UE,Central Support Services,1009,Chief Executive,Miscellaneous Expenses,40200,Miscellaneous Expenses,5034,supplies,27/07/2018,131329,5.88,Revenue,Chorley BC Petty Cash,16301
Chorley Borough Council,http://statistics.data.gov.uk/id/local-authority/30UE,Central Support Services,1009,Chief Executive,Miscellaneous Expenses,40200,Miscellaneous Expenses,5034,refreshments,27/07/2018,131329,14.63,Revenue,Chorley BC Petty Cash,16301
Chorley Borough Council,http://statistics.data.gov.uk/id/local-authority/30UE,Unapportionable Central OHeads,1009,Chief Executive,Cleaning Materials,40019,"Equipment, Furniture & Materia",5023,dishwasher tablets,27/07/2018,131329,6.66,Revenue,Chorley BC Petty Cash,16301
Chorley Borough Council,http://statistics.data.gov.uk/id/local-authority/30UE,Economic Development,1096,Chief Executive,Miscellaneous Expenses,40200,Miscellaneous Expenses,5034,refreshments,27/07/2018,131329,5.00,Revenue,Chorley BC Petty Cash,16301
Chorley Borough Council,http://statistics.data.gov.uk/id/local-authority/30UE,Economic Development,1096,Chief Executive,Miscellaneous Expenses,40200,Miscellaneous Expenses,5034,postage,27/07/2018,131329,1.89,Revenue,Chorley BC Petty Cash,16301
Chorley Borough Council,http://statistics.data.gov.uk/id/local-authority/30UE,Economic Development,1096,Chief Executive,Miscellaneous Expenses,40200,Miscellaneous Expenses,5034,postage,27/07/2018,131329,1.89,Revenue,Chorley BC Petty Cash,16301
Chorley Borough Council,http://statistics.data.gov.uk/id/local-authority/30UE,Central Support Services,1009,Chief Executive,Miscellaneous Expenses,40200,Miscellaneous Expenses,5034,tape,27/07/2018,131329,0.84,Revenue,Chorley BC Petty Cash,16301
Chorley Borough Council,http://statistics.data.gov.uk/id/local-authority/30UE,Central Support Services,1009,Chief Executive,Miscellaneous Expenses,40200,Miscellaneous Expenses,5034,cds,27/07/2018,131329,4.17,Revenue,Chorley BC Petty Cash,16301
Chorley Borough Council,http://statistics.data.gov.uk/id/local-authority/30UE,Central Support Services,1009,Chief Executive,Miscellaneous Expenses,40200,Miscellaneous Expenses,5034,posateg,27/07/2018,131329,10.95,Revenue,Chorley BC Petty Cash,16301
Chorley Borough Council,http://statistics.data.gov.uk/id/local-authority/30UE,Central Support Services,1009,Chief Executive,Miscellaneous Expenses,40200,Miscellaneous Expenses,5034,cable ties,27/07/2018,131329,1.67,Revenue,Chorley BC Petty Cash,16301
Chorley Borough Council,http://statistics.data.gov.uk/id/local-authority/30UE,Unapportionable Central OHeads,1009,Chief Executive,Refreshments,40036,Catering,5024,milk,27/07/2018,131329,1.10,Revenue,Chorley BC Petty Cash,16301
Chorley Borough Council,http://statistics.data.gov.uk/id/local-authority/30UE,Democratic Represent and  Mgnt,1007,Chief Executive,Tools & Equipment - Purchase,40003,"Equipment, Furniture & Materia",5023,juice,27/07/2018,131329,8.25,Revenue,Chorley BC Petty Cash,16301
Chorley Borough Council,http://statistics.data.gov.uk/id/local-authority/30UE,Democratic Represent and  Mgnt,1007,Chief Executive,Tools & Equipment - Purchase,40003,"Equipment, Furniture & Materia",5023,lights,27/07/2018,131329,19.95,Revenue,Chorley BC Petty Cash,16301
Chorley Borough Council,http://statistics.data.gov.uk/id/local-authority/30UE,Democratic Represent and  Mgnt,1007,Chief Executive,Use Of Transport - Mayoral Car,30015,Transport Recharges,5017,car wash,27/07/2018,131329,6.00,Revenue,Chorley BC Petty Cash,16301
Chorley Borough Council,http://statistics.data.gov.uk/id/local-authority/30UE,Democratic Represent and  Mgnt,1007,Chief Executive,Member Development Programme,17007,Indirect Employee Expenses,5002,cakes,27/07/2018,131329,6.45,Revenue,Chorley BC Petty Cash,16301
Chorley Borough Council,http://statistics.data.gov.uk/id/local-authority/30UE,Democratic Represent and  Mgnt,1007,Chief Executive,Tools & Equipment - Purchase,40003,"Equipment, Furniture & Materia",5023,drinks,27/07/2018,131329,8.62,Revenue,Chorley BC Petty Cash,16301
Chorley Borough Council,http://statistics.data.gov.uk/id/local-authority/30UE,Homelessness,1075,Chief Executive,Miscellaneous Expenses,40200,Miscellaneous Expenses,5034,materials,27/07/2018,131329,14.98,Revenue,Chorley BC Petty Cash,16301
Chorley Borough Council,http://statistics.data.gov.uk/id/local-authority/30UE,Democratic Represent and  Mgnt,1007,Chief Executive,Use Of Transport - Mayoral Car,30015,Transport Recharges,5017,car wash,27/07/2018,131329,6.00,Revenue,Chorley BC Petty Cash,16301
Chorley Borough Council,http://statistics.data.gov.uk/id/local-authority/30UE,Central Support Services,1009,Chief Executive,Miscellaneous Expenses,40200,Miscellaneous Expenses,5034,materials,27/07/2018,131329,16.84,Revenue,Chorley BC Petty Cash,16301
Chorley Borough Council,http://statistics.data.gov.uk/id/local-authority/30UE,Democratic Represent and  Mgnt,1007,Chief Executive,Tools & Equipment - Maintenance,40005,"Equipment, Furniture & Materia",5023,batteries,27/07/2018,131329,1.67,Revenue,Chorley BC Petty Cash,16301
Chorley Borough Council,http://statistics.data.gov.uk/id/local-authority/30UE,Unapportionable Central OHeads,1009,Policy & Governance,Tools & Equipment - Purchase,40003,"Equipment, Furniture & Materia",5023,"18"" high velocity floor fan QTY 10  29.99 each total 299.90",20/07/2018,130865,299.90,Revenue,Chorley Electrical Traders Ltd,16330
Chorley Borough Council,http://statistics.data.gov.uk/id/local-authority/30UE,Unapportionable Central OHeads,1009,Policy & Governance,Exhibitions & Special Events,40158,Miscellaneous Expenses,5034,Gazebo Purchase,04/07/2018,130702,500.00,Revenue,Chorley FM Ltd,50669
Chorley Borough Council,http://statistics.data.gov.uk/id/local-authority/30UE,Unapportionable Central OHeads,1009,Policy & Governance,Processional Routes,40177,Miscellaneous Expenses,5034,Fee for playing at Mayor`s Civic Sunday on 20th May 2018,18/07/2018,131068,400.00,Revenue,Chorley Pipe Band,21576
Chorley Borough Council,http://statistics.data.gov.uk/id/local-authority/30UE,Community Development,1097,Policy & Governance,Core Funding Grants,40133,Grants and Subscriptions,5031,Provision of Support for Vulnerable Adults (Women) during 2018/19,20/07/2018,131098,"7,500.00",Revenue,Chorley Womens Centre,17036
Chorley Borough Council,http://statistics.data.gov.uk/id/local-authority/30UE,Economic Development,1096,Business Development & Growth,Fixtures & Fittings - Repair/Mtnce,20028,Fixtures and Fittings,5010,Please supply 15 x corner legs for Gazebo`s 25.00 each,04/07/2018,130727,375.00,Revenue,City B Group Ltd,47300
Chorley Borough Council,http://statistics.data.gov.uk/id/local-authority/30UE,Service Management & Support,1009,Business Development & Growth,Grounds Maintenance Contractor,20043,Grounds Maintenance Costs,5013,"Works completed @ Destination Play Area, Astley Park, Chorley - Total 550 Contact - NAME REDACTED",13/07/2018,130741,550.00,Revenue,City Illuminations Ltd,77388
Chorley Borough Council,http://statistics.data.gov.uk/id/local-authority/30UE,Capital,Capital,Business Development & Growth,Equipment,3014,Capital Expenditure,Capital,Pool Hoist - Brinscall Baths,25/07/2018,131066,"3,294.95",Capital,Complete Care Network Ta Complete care Shop,77413
Chorley Borough Council,http://statistics.data.gov.uk/id/local-authority/30UE,Economic Development,1096,Business Development & Growth,Fixtures & Fittings - Purchase,20027,Fixtures and Fittings,5010,"As per quote ref: C 4934 Please disconnect all the existing perimeter lights, re-using the existing recessed plates and supply ",18/07/2018,130988,"1,135.50",Revenue,Corlett Electrical Eng Co Ltd,16271
Chorley Borough Council,http://statistics.data.gov.uk/id/local-authority/30UE,Unapportionable Central OHeads,1009,Business Development & Growth,General Repairs - Reactive,20004,Repairs Maintenance & Alts,5005,Blanket order for reactive works,20/07/2018,130996,273.43,Revenue,Corlett Electrical Eng Co Ltd,16271
Chorley Borough Council,http://statistics.data.gov.uk/id/local-authority/30UE,Unapportionable Central OHeads,1009,Business Development & Growth,General Repairs - Reactive,20004,Repairs Maintenance & Alts,5005,Blanket order for reactive works,20/07/2018,130997,323.56,Revenue,Corlett Electrical Eng Co Ltd,16271
Chorley Borough Council,http://statistics.data.gov.uk/id/local-authority/30UE,Unapportionable Central OHeads,1009,Business Development & Growth,Planned Maintenance,20006,Repairs Maintenance & Alts,5005,blanket order for PPM jobs,20/07/2018,130998,"1,188.30",Revenue,Corlett Electrical Eng Co Ltd,16271
Chorley Borough Council,http://statistics.data.gov.uk/id/local-authority/30UE,Unapportionable Central OHeads,1009,Business Development & Growth,General Repairs - Reactive,20004,Repairs Maintenance & Alts,5005,Blanket order for reactive works,20/07/2018,131000,325.85,Revenue,Corlett Electrical Eng Co Ltd,16271
Chorley Borough Council,http://statistics.data.gov.uk/id/local-authority/30UE,Service Management & Support,1009,Business Development & Growth,External Contractor,40198,Miscellaneous Expenses,5034,Quote C4923 Yarrow Valley Country Park outside flood lights. Option 3,20/07/2018,131044,775.00,Revenue,Corlett Electrical Eng Co Ltd,16271
Chorley Borough Council,http://statistics.data.gov.uk/id/local-authority/30UE,Unapportionable Central OHeads,1009,Business Development & Growth,Planned Maintenance,20006,Repairs Maintenance & Alts,5005,blanket order for PPM jobs,20/07/2018,131053,"2,246.55",Revenue,Corlett Electrical Eng Co Ltd,16271
Chorley Borough Council,http://statistics.data.gov.uk/id/local-authority/30UE,Unapportionable Central OHeads,1009,Policy & Governance,HR Approved Training Expenses,17001,Indirect Employee Expenses,5002,Fees for Coaching in June 2018 plus travel expenses,06/07/2018,130782,"1,235.10",Revenue,Create Edge Ltd,77142
Chorley Borough Council,http://statistics.data.gov.uk/id/local-authority/30UE,Central Support Services,1009,Business Development & Growth,Consultants` Fees,40077,Services,5027,sub-consultant through HIVE for Alker Lane works  - flood risk/drainage - highways and transport,18/07/2018,130894,"1,450.00",Revenue,Curtins Consulting Engineers,20049
Chorley Borough Council,http://statistics.data.gov.uk/id/local-authority/30UE,Business Support,1095,Business Development & Growth,Miscellaneous Expenses,40200,Miscellaneous Expenses,5034,completion,25/07/2018,131170,"4,875.00",Revenue,Curtins Consulting Engineers,20049
Chorley Borough Council,http://statistics.data.gov.uk/id/local-authority/30UE,Business Support,1095,Business Development & Growth,Miscellaneous Expenses,40200,Miscellaneous Expenses,5034,Professional Design Fees - Digital Office Hub project,25/07/2018,131181,"2,800.00",Revenue,Curtins Consulting Engineers,20049
Chorley Borough Council,http://statistics.data.gov.uk/id/local-authority/30UE,Business Support,1095,Business Development & Growth,Miscellaneous Expenses,40200,Miscellaneous Expenses,5034,Digital Office Park - monitoring of enabling works,25/07/2018,131199,"3,895.00",Revenue,Curtins Consulting Engineers,20049
Chorley Borough Council,http://statistics.data.gov.uk/id/local-authority/30UE,Unapportionable Central OHeads,1009,Policy & Governance,HR Approved Training Expenses,17001,Indirect Employee Expenses,5002,Investigations Training 4 July 2018,13/07/2018,130985,"2,000.00",Revenue,Darren Newman Employment Law Ltd,77434
Chorley Borough Council,http://statistics.data.gov.uk/id/local-authority/30UE,Unapportionable Central OHeads,1009,Policy & Governance,Publicity - Advertising,40157,Miscellaneous Expenses,5034,Work at Disley Farm in Connection with Signage,25/07/2018,130609,472.50,Revenue,Edwin Schofield,77436
Chorley Borough Council,http://statistics.data.gov.uk/id/local-authority/30UE,Central Support Services,1009,Customer & Digital,Mobile Voice and Data,40086,Communication and Computing,5028,,20/07/2018,130965,402.71,Revenue,EE - Orange,16486
Chorley Borough Council,http://statistics.data.gov.uk/id/local-authority/30UE,Central Support Services,1009,Customer & Digital,Mobile Voice and Data,40086,Communication and Computing,5028,,18/07/2018,131038,"1,347.25",Revenue,EE - Orange,16486
Chorley Borough Council,http://statistics.data.gov.uk/id/local-authority/30UE,Business Support,1095,Business Development & Growth,Grants To Other Organisations,40127,Grants and Subscriptions,5031,bussiness grant,11/07/2018,130807,250.00,Revenue,NAME REDACTED,77345
Chorley Borough Council,http://statistics.data.gov.uk/id/local-authority/30UE,Capital,Capital,Business Development & Growth,Main Contractor,3007,Capital Expenditure,Capital,Primrose gardens Valuation Statements,04/07/2018,130616,"50,446.57",Capital,Eric Wright Construction Ltd,76464
Chorley Borough Council,http://statistics.data.gov.uk/id/local-authority/30UE,Capital,Capital,Business Development & Growth,Main Contractor,3007,Capital Expenditure,Capital,Primerose garden,04/07/2018,130616,"408,158.57",Capital,Eric Wright Construction Ltd,76464
Chorley Borough Council,http://statistics.data.gov.uk/id/local-authority/30UE,Capital,Capital,Business Development & Growth,Main Contractor,3007,Capital Expenditure,Capital,Market Walk Chorley additional PCSA (Pre Construction Service Agreement  works following on from PRD048086 & PRD050459,04/07/2018,130706,"11,693.58",Capital,Eric Wright Construction Ltd,76464
Chorley Borough Council,http://statistics.data.gov.uk/id/local-authority/30UE,Capital,Capital,Business Development & Growth,Main Contractor,3007,Capital Expenditure,Capital,"Friday Street � Resurfacing, drainage improvements & erection of a decked car park as detailed in EWC cost plan",20/07/2018,130962,"78,125.51",Capital,Eric Wright Construction Ltd,76464
Chorley Borough Council,http://statistics.data.gov.uk/id/local-authority/30UE,Capital,Capital,Business Development & Growth,Main Contractor,3007,Capital Expenditure,Capital,"Oak House � Demolition, asbestos removal, lighting & creation of a surface car park as detailed in EWC cost plan",20/07/2018,130963,"21,957.85",Capital,Eric Wright Construction Ltd,76464
Chorley Borough Council,http://statistics.data.gov.uk/id/local-authority/30UE,Capital,Capital,Business Development & Growth,Main Contractor,3007,Capital Expenditure,Capital,Primrose gardens Valuation Statements,13/07/2018,130966,"60,522.42",Capital,Eric Wright Construction Ltd,76464
Chorley Borough Council,http://statistics.data.gov.uk/id/local-authority/30UE,Capital,Capital,Business Development & Growth,Main Contractor,3007,Capital Expenditure,Capital,zero rated,13/07/2018,130966,"489,681.44",Capital,Eric Wright Construction Ltd,76464
Chorley Borough Council,http://statistics.data.gov.uk/id/local-authority/30UE,Corporate Management,1008,Customer & Digital,Printing,40043,"Printing, Stationery & General",5026,"Garden waste permits 2018-19: Garden waste stickers, letters, envelopes, picking-and-packing and mailing - and customer cloud",04/07/2018,130707,"2,119.60",Revenue,Euro Labels Printers Ltd,77202
Chorley Borough Council,http://statistics.data.gov.uk/id/local-authority/30UE,Democratic Represent and  Mgnt,1007,Customer & Digital,Supplies-Grounds Maintenance,40025,"Equipment, Furniture & Materia",5023,30 - 3litre Heuchera 28 - 5litre Lavendar,04/07/2018,130633,251.00,Revenue,Everglades Nurseries Ltd,20202
Chorley Borough Council,http://statistics.data.gov.uk/id/local-authority/30UE,Democratic Represent and  Mgnt,1007,Customer & Digital,Supplies-Grounds Maintenance,40025,"Equipment, Furniture & Materia",5023,25 10 litre Phormiums,11/07/2018,130871,500.00,Revenue,Everglades Nurseries Ltd,20202
Chorley Borough Council,http://statistics.data.gov.uk/id/local-authority/30UE,Democratic Represent and  Mgnt,1007,Business Development & Growth,Maintenance/Nature Reserves,20045,Grounds Maintenance Costs,5013,2nr Sorbus Aucuparia; 2nr Prunus Padus; 4nr Populus Tremula; 6nr Alnus Glutinosa; 6nr Betula Nigra. 20nr tree stakes and ties,11/07/2018,130872,"1,044.00",Revenue,Everglades Nurseries Ltd,20202
Chorley Borough Council,http://statistics.data.gov.uk/id/local-authority/30UE,Corporate Management,1008,Customer & Digital,Tools & Equipment - Maintenance,40005,"Equipment, Furniture & Materia",5023,Onsite refurbs/fit new lids to 8 communal bins at 6 locations,11/07/2018,130565,472.50,Revenue,Fairport Containers Ltd,17735
Chorley Borough Council,http://statistics.data.gov.uk/id/local-authority/30UE,Economic Development,1096,Business Development & Growth,Miscellaneous Expenses,40200,Miscellaneous Expenses,5034,please provide 200m LYLM bunting 580 + VAT  Delivery 6.66 +VAT  Total 586.66 +VAT  ITEMS ALREADY RECEIVED,13/07/2018,130971,488.88,Revenue,Gala Graphics Ltd,77468
Chorley Borough Council,http://statistics.data.gov.uk/id/local-authority/30UE,Unapportionable Central OHeads,1009,Policy & Governance,Window Cleaning,20034,Cleaning and Domestic Supplies,5012,Union Street Offices: Cleaning of all external windows to ground and first floors using Reach and wash system. Cleaning all extern,04/07/2018,130289,"1,081.00",Revenue,Garstang Cleaning Specialists Ltd,75669
Chorley Borough Council,http://statistics.data.gov.uk/id/local-authority/30UE,Unapportionable Central OHeads,1009,Policy & Governance,Window Cleaning,20034,Cleaning and Domestic Supplies,5012,Bengal Street Depot Building Clean all windows inside and out to ground & first floor by reach and wash system (externally) to inc,04/07/2018,130289,108.00,Revenue,Garstang Cleaning Specialists Ltd,75669
Chorley Borough Council,http://statistics.data.gov.uk/id/local-authority/30UE,Business Support,1095,Business Development & Growth,Grants To Other Organisations,40127,Grants and Subscriptions,5031,start grant,13/07/2018,130975,250.00,Revenue,NAME REDACTED,77380
Chorley Borough Council,http://statistics.data.gov.uk/id/local-authority/30UE,Central Support Services,1009,Early Intervention,Vandalism Repairs,20005,Repairs Maintenance & Alts,5005,Contract for Graffiti removal 2017,11/07/2018,130680,445.00,Revenue,Graffiti Away,76316
Chorley Borough Council,http://statistics.data.gov.uk/id/local-authority/30UE,Other Short Term Creditors,,Policy & Governance,General Balances,100,Balance Sheet,Balance,P11D Class 1A NICs,06/07/2018,130756,"41,438.92",Revenue,H M Revenue & Customs Only P11D,21264
Chorley Borough Council,http://statistics.data.gov.uk/id/local-authority/30UE,Service Management & Support,1009,Customer & Digital,Supplies-Grounds Maintenance,40025,"Equipment, Furniture & Materia",5023,"60,000 litter bags as per you quotation  60,000 200g White Opaque Chorley Borough Printed Sack 500 x 855 x 975mm in rolls",18/07/2018,131056,"5,121.33",Revenue,Harrisons Packaging Ltd,17555
Chorley Borough Council,http://statistics.data.gov.uk/id/local-authority/30UE,Democratic Represent and  Mgnt,1007,Business Development & Growth,Maintenance/Nature Reserves,20045,Grounds Maintenance Costs,5013,"Quote no 125829. Yarrow Valley Walk Leaflets - Yellow, Green, Blue and Red. 500 of each.",06/07/2018,130765,293.00,Revenue,Haslam PrintersLtd,21777
Chorley Borough Council,http://statistics.data.gov.uk/id/local-authority/30UE,Planning Policy,1092,Policy & Governance,Publicity - Advertising,40157,Miscellaneous Expenses,5034,Advertising for Local Plan Co-ordinator role,11/07/2018,130870,"2,079.00",Revenue,Haymarket Publishing Services Ltd,16347
Chorley Borough Council,http://statistics.data.gov.uk/id/local-authority/30UE,Central Support Services,1009,Customer & Digital,Computer Software-Purchase,40100,Communication and Computing,5028,Exacom software purchase,20/07/2018,125570,"7,875.00",Revenue,IDOX Software Limited,17542
Chorley Borough Council,http://statistics.data.gov.uk/id/local-authority/30UE,Central Support Services,1009,Customer & Digital,Computer Software-Additional,40102,Communication and Computing,5028,Uniform Upgrade Weekend Working 1 day �top up� requirement to upgrade Uniform outside of normal working hours at weekend,06/07/2018,130623,950.00,Revenue,IDOX Software Limited,17542
Chorley Borough Council,http://statistics.data.gov.uk/id/local-authority/30UE,Central Support Services,1009,Customer & Digital,Computer - Support Services,40111,Communication and Computing,5028,"Discounted Training as gesture of goodwill for EDMS project	TOTAL			1250.0	N/A",06/07/2018,130624,"1,250.00",Revenue,IDOX Software Limited,17542
Chorley Borough Council,http://statistics.data.gov.uk/id/local-authority/30UE,Elections,1012,Policy & Governance,Computer - Support Services,40111,Communication and Computing,5028,Atlas boundary change tool (2 year contract)with special discount as per reference number JB200318 2330.30 per annum,25/07/2018,131240,"2,330.30",Revenue,IDOX Software Limited,17542
Chorley Borough Council,http://statistics.data.gov.uk/id/local-authority/30UE,Unapportionable Central OHeads,1009,Customer & Digital,General Subscriptions,40146,Grants and Subscriptions,5031,iNetwork membership April 2018- March 2019,20/07/2018,130897,"1,600.00",Revenue,iNetwork (Tameside Council),19554
Chorley Borough Council,http://statistics.data.gov.uk/id/local-authority/30UE,Unapportionable Central OHeads,1009,Customer & Digital,Professional Fees,40063,Services,5027,Analyse LOCAL - one-off RV finder (26 assessments),20/07/2018,131085,500.00,Revenue,Inform CPI Ltd,77179
Chorley Borough Council,http://statistics.data.gov.uk/id/local-authority/30UE,Unapportionable Central OHeads,1009,Customer & Digital,Professional Fees,40063,Services,5027,Analyse LOCAL - one-off RV finder (26 assessments),20/07/2018,131133,550.00,Revenue,Inform CPI Ltd,77179
Chorley Borough Council,http://statistics.data.gov.uk/id/local-authority/30UE,Central Support Services,1009,Early Intervention,Training Course Fees,17010,Indirect Employee Expenses,5002,2 places on the IOL Animal Licensing Training at Preston on 7th September 2018 NAME REDACTED- IOL Member (155),11/07/2018,130809,390.00,Revenue,Institute Of Licensing,16987
Chorley Borough Council,http://statistics.data.gov.uk/id/local-authority/30UE,Economic Development,1096,Business Development & Growth,Promotional Expenses,40159,Miscellaneous Expenses,5034,Adverts in the Preston Chorley & Leyland Pulse (Issue/s - 11),18/07/2018,131028,350.00,Revenue,Investors in Publishing,21455
Chorley Borough Council,http://statistics.data.gov.uk/id/local-authority/30UE,Community Development,1097,Business Development & Growth,Rent/Hire Of Premises,20017,Premises Rents,5007,Annual Rent of 35-39 Market st,18/07/2018,130186,"7,218.75",Revenue,J R Keys,17124
Chorley Borough Council,http://statistics.data.gov.uk/id/local-authority/30UE,Business Support,1095,Business Development & Growth,Refuse Collection,20037,Cleaning and Domestic Supplies,5012,Waste Compactor Rental Services @ 270.0 per month for 01 April 2018 - 31 March 2019,04/07/2018,130692,270.00,Revenue,J&H Rentals Limited,70699
Chorley Borough Council,http://statistics.data.gov.uk/id/local-authority/30UE,Tourism,1039,Policy & Governance,Publicity - Advertising,40157,Miscellaneous Expenses,5034,Chorley Flower Show Advert,04/07/2018,129913,920.00,Revenue,Jam Design and Publications Ltd,76061
Chorley Borough Council,http://statistics.data.gov.uk/id/local-authority/30UE,Unapportionable Central OHeads,1009,Policy & Governance,HR Recruitment - Advertising,15300,Indirect Employee Expenses,5002,Advertising credits x 10,18/07/2018,131075,"4,990.00",Revenue,JGP Resourcing Ltd,50012
Chorley Borough Council,http://statistics.data.gov.uk/id/local-authority/30UE,Unapportionable Central OHeads,1009,Policy & Governance,HR Recruitment - Advertising,15300,Indirect Employee Expenses,5002,Recruitment search for Property & Business Development Manager,18/07/2018,131076,"5,500.00",Revenue,JGP Resourcing Ltd,50012
Chorley Borough Council,http://statistics.data.gov.uk/id/local-authority/30UE,Capital,Capital,Business Development & Growth,Architects Fees,3022,Capital Expenditure,Capital,"Garden of Reflection.  Professional design fees, project management including labour for build, site prep clearance and waste dis",20/07/2018,131084,"20,737.50",Capital,John Everiss Design Ltd,69632
Chorley Borough Council,http://statistics.data.gov.uk/id/local-authority/30UE,Capital,Capital,Business Development & Growth,Architects Fees,3022,Capital Expenditure,Capital,"Garden of Reflection. Professional design fees, project management including labour for build site prep clearance and waste dis",25/07/2018,131168,"20,737.50",Capital,John Everiss Design Ltd,69632
Chorley Borough Council,http://statistics.data.gov.uk/id/local-authority/30UE,Economic Development,1096,Business Development & Growth,Miscellaneous Expenses,40200,Miscellaneous Expenses,5034,For business start-up support for May 2018 - 7 days at 200 per day,04/07/2018,130743,"1,150.00",Revenue,John Townsend,77195
Chorley Borough Council,http://statistics.data.gov.uk/id/local-authority/30UE,Development Control,1091,Customer & Digital,Statutory Notices,40160,Miscellaneous Expenses,5034,Planning Public Notices to appear in the Chorley Guardian April 2018 to March 2019,11/07/2018,130769,314.64,Revenue,Johnston Publishing Ltd,20072
Chorley Borough Council,http://statistics.data.gov.uk/id/local-authority/30UE,Capital,Capital,Early Intervention,Grants,3002,Capital Expenditure,Capital,ADDRESS REDACTED,27/07/2018,131182,"3,362.50",Capital,K Berry Ltd,16421
Chorley Borough Council,http://statistics.data.gov.uk/id/local-authority/30UE,Central Support Services,1009,Early Intervention,Pest Control,20039,Cleaning and Domestic Supplies,5012,6 Boxes AF Tunnels,18/07/2018,130917,120.96,Revenue,Killgerm Chemicals Ltd,16879
Chorley Borough Council,http://statistics.data.gov.uk/id/local-authority/30UE,Central Support Services,1009,Early Intervention,Pest Control,20039,Cleaning and Domestic Supplies,5012,Solo Blox B004K,18/07/2018,130917,167.76,Revenue,Killgerm Chemicals Ltd,16879
Chorley Borough Council,http://statistics.data.gov.uk/id/local-authority/30UE,Development Control,1091,Policy & Governance,Legal Fees,40171,Miscellaneous Expenses,5034,"Advice of NAME REDACTED relating to planning application 18/00148/FUL land at Grimeford Lane, Anderton",11/07/2018,130798,262.50,Revenue,Kings Chambers Ltd,48008
Chorley Borough Council,http://statistics.data.gov.uk/id/local-authority/30UE,Control Accounts,Control,Policy & Governance,General Balances,100,Balance Sheet,Balance,monthly deds from expenses,27/07/2018,131204,"1,568.31",Revenue,Labour Councillors Association,17577
Chorley Borough Council,http://statistics.data.gov.uk/id/local-authority/30UE,Development Control,1091,Customer & Digital,Tools & Equipment - Purchase,40003,"Equipment, Furniture & Materia",5023,"Service Level Agreement Archaeological Advice to Chorley Council, 2018 - 2019",11/07/2018,130898,"1,265.63",Revenue,Lancashire Archaeological Advisory Services,75761
Chorley Borough Council,http://statistics.data.gov.uk/id/local-authority/30UE,Central Support Services,1009,Customer & Digital,Computer Equipment-Maintenance,40105,Communication and Computing,5028,,20/07/2018,125191,"6,851.18",Revenue,Lancashire County Council,17758
Chorley Borough Council,http://statistics.data.gov.uk/id/local-authority/30UE,Precepts and Collection Fund,Precepts,Policy & Governance,LCC Precept,2009,Precepts & Collection Fund,Precept,ctax precept,04/07/2018,129785,"4,777,177.00",Revenue,Lancashire County Council,18386
Chorley Borough Council,http://statistics.data.gov.uk/id/local-authority/30UE,Collection Fund Revenue Accoun,,Policy & Governance,NNDR County Share,2036,Precepts & Collection Fund,Precept,bus rates,04/07/2018,129785,"208,357.00",Revenue,Lancashire County Council,18386
Chorley Borough Council,http://statistics.data.gov.uk/id/local-authority/30UE,Precepts and Collection Fund,Precepts,Policy & Governance,LCC Precept,2009,Precepts & Collection Fund,Precept,lcc council tax precept,04/07/2018,130145,"4,777,174.00",Revenue,Lancashire County Council,18386
Chorley Borough Council,http://statistics.data.gov.uk/id/local-authority/30UE,Collection Fund Revenue Accoun,,Policy & Governance,NNDR County Share,2036,Precepts & Collection Fund,Precept,lcc business rates precept,04/07/2018,130145,"208,361.00",Revenue,Lancashire County Council,18386
Chorley Borough Council,http://statistics.data.gov.uk/id/local-authority/30UE,Central Support Services,1009,Customer & Digital,External Contractor,40198,Miscellaneous Expenses,5034,"Provision of parking enforcement service for Bury Lane, Wheelton for 2017/18.  FAO NAME REDACTED",13/07/2018,130979,"3,250.00",Revenue,Lancashire County Council,17758
Chorley Borough Council,http://statistics.data.gov.uk/id/local-authority/30UE,Democratic Represent and  Mgnt,1007,Policy & Governance,Other Contributions,40145,Grants and Subscriptions,5031,donation from mayors charity appeal 2017-18,06/07/2018,130745,"8,000.00",Revenue,Lancashire Mind Ltd,18578
Chorley Borough Council,http://statistics.data.gov.uk/id/local-authority/30UE,Corporate Management,1008,Customer & Digital,Clinical Waste Collection,50007,Private Contractors,5042,"Disposal of clinical waste from Chorley household. April 2018 to March 2019. Yellow bag collections, approx. 500 per month.",04/07/2018,130625,748.22,Revenue,Lancashire Teaching Hospitals NHS FT,19003
Chorley Borough Council,http://statistics.data.gov.uk/id/local-authority/30UE,Corporate Management,1008,Customer & Digital,Clinical Waste Collection,50007,Private Contractors,5042,"Disposal of clinical waste from Chorley household. April 2018 to March 2019. Yellow bag collections, approx. 500 per month.",04/07/2018,130642,754.49,Revenue,Lancashire Teaching Hospitals NHS FT,19003
Chorley Borough Council,http://statistics.data.gov.uk/id/local-authority/30UE,Precepts and Collection Fund,Precepts,Policy & Governance,LCFA Precept,2011,Precepts & Collection Fund,Precept,ctax precept,04/07/2018,129784,"248,928.00",Revenue,Lancs Combined Fire Authority,17768
Chorley Borough Council,http://statistics.data.gov.uk/id/local-authority/30UE,Collection Fund Revenue Accoun,,Policy & Governance,NNDR Fire Share,2037,Precepts & Collection Fund,Precept,bus rates,04/07/2018,129784,"23,153.00",Revenue,Lancs Combined Fire Authority,17768
Chorley Borough Council,http://statistics.data.gov.uk/id/local-authority/30UE,Precepts and Collection Fund,Precepts,Policy & Governance,LCFA Precept,2011,Precepts & Collection Fund,Precept,lcfa council tax precept,04/07/2018,130149,"248,922.00",Revenue,Lancs Combined Fire Authority,17768
Chorley Borough Council,http://statistics.data.gov.uk/id/local-authority/30UE,Collection Fund Revenue Accoun,,Policy & Governance,NNDR Fire Share,2037,Precepts & Collection Fund,Precept,lcfa business rates precept,04/07/2018,130149,"23,151.00",Revenue,Lancs Combined Fire Authority,17768
Chorley Borough Council,http://statistics.data.gov.uk/id/local-authority/30UE,Unapportionable Central OHeads,1009,Customer & Digital,Service Fees,40056,Services,5027,Language line annual fee 2017 345 and invoice 128.95  0404737,20/07/2018,131088,295.00,Revenue,Language Line Ltd,16342
Chorley Borough Council,http://statistics.data.gov.uk/id/local-authority/30UE,Unapportionable Central OHeads,1009,Policy & Governance,Car Leasing Payment,14100,Direct Employee Expenses,5001,NAME REDACTED,04/07/2018,130405,664.84,Revenue,Lex Autolease Ltd,70682
Chorley Borough Council,http://statistics.data.gov.uk/id/local-authority/30UE,Corporate Management,1008,Policy & Governance,Car Leasing Payment,14100,Direct Employee Expenses,5001,NAME REDACTED,04/07/2018,130406,"3,072.96",Revenue,Lex Autolease Ltd,70682
Chorley Borough Council,http://statistics.data.gov.uk/id/local-authority/30UE,Corporate Management,1008,Policy & Governance,Car Leasing Payment,14100,Direct Employee Expenses,5001,,04/07/2018,130406,253.74,Revenue,Lex Autolease Ltd,70682
Chorley Borough Council,http://statistics.data.gov.uk/id/local-authority/30UE,Control Accounts,Control,Policy & Governance,Manual Control Account,1,Balance Sheet,Balance,,04/07/2018,130406,-253.74,Revenue,Lex Autolease Ltd,70682
Chorley Borough Council,http://statistics.data.gov.uk/id/local-authority/30UE,Democratic Represent and  Mgnt,1007,Policy & Governance,Vehicles and Plant Operating Lease,30029,Contrct Hire & Operating Lease,5018,"Quote: 23525408/00001  Jaguar XF - 2.0d [180] Prestige 4dr Auto Saloon, Automatic, Diesel InControl touch pro pack with 380W",18/07/2018,131040,"4,526.28",Revenue,Lex Autolease Ltd,70682
Chorley Borough Council,http://statistics.data.gov.uk/id/local-authority/30UE,Unapportionable Central OHeads,1009,Policy & Governance,Publications,40054,"Printing, Stationery & General",5026,justice manual,25/07/2018,130970,406.33,Revenue,Lexis Nexis UK,16688
Chorley Borough Council,http://statistics.data.gov.uk/id/local-authority/30UE,Unapportionable Central OHeads,1009,Policy & Governance,Publications,40054,"Printing, Stationery & General",5026,zero rate,25/07/2018,130970,382.66,Revenue,Lexis Nexis UK,16688
Chorley Borough Council,http://statistics.data.gov.uk/id/local-authority/30UE,Unapportionable Central OHeads,1009,Policy & Governance,Publications,40054,"Printing, Stationery & General",5026,carriage,25/07/2018,130970,7.00,Revenue,Lexis Nexis UK,16688
Chorley Borough Council,http://statistics.data.gov.uk/id/local-authority/30UE,Unapportionable Central OHeads,1009,Customer & Digital,Professional Fees,14011,Direct Employee Expenses,5001,Capacity Grid Empty Home Review 2018,18/07/2018,130297,"5,068.70",Revenue,Liberata (Capacity Grid),67989
Chorley Borough Council,http://statistics.data.gov.uk/id/local-authority/30UE,Unapportionable Central OHeads,1009,Customer & Digital,Professional Fees,14011,Direct Employee Expenses,5001,Capacity Grid Empty Home Review 2018,18/07/2018,130801,"1,531.75",Revenue,Liberata (Capacity Grid),67989
Chorley Borough Council,http://statistics.data.gov.uk/id/local-authority/30UE,Tourism,1039,Policy & Governance,Publicity - Advertising,40157,Miscellaneous Expenses,5034,Flower Show Advert,06/07/2018,130755,287.50,Revenue,Live Magazines Ltd,76058
Chorley Borough Council,http://statistics.data.gov.uk/id/local-authority/30UE,Tourism,1039,Policy & Governance,Publicity - Advertising,40157,Miscellaneous Expenses,5034,Flower Show Advert,13/07/2018,130916,287.50,Revenue,Live Magazines Ltd,76058
Chorley Borough Council,http://statistics.data.gov.uk/id/local-authority/30UE,Unapportionable Central OHeads,1009,Policy & Governance,Computer Consumables,40099,Communication and Computing,5028,3.332.451 LYRECO I/JET CART COMP HP 343 C8766 3COL,04/07/2018,130579,40.11,Revenue,Lyreco UK Ltd,17623
Chorley Borough Council,http://statistics.data.gov.uk/id/local-authority/30UE,Unapportionable Central OHeads,1009,Policy & Governance,Computer Consumables,40099,Communication and Computing,5028,Black Toner Cartridge for Lexmark T650 printer,04/07/2018,130579,343.42,Revenue,Lyreco UK Ltd,17623
Chorley Borough Council,http://statistics.data.gov.uk/id/local-authority/30UE,Unapportionable Central OHeads,1009,Policy & Governance,Computer Consumables,40099,Communication and Computing,5028,yellow ink hp,04/07/2018,130579,30.18,Revenue,Lyreco UK Ltd,17623
Chorley Borough Council,http://statistics.data.gov.uk/id/local-authority/30UE,Unapportionable Central OHeads,1009,Policy & Governance,Computer Consumables,40099,Communication and Computing,5028,Hp C4844A/No.10 Original Inkjet Cartridge - Black,04/07/2018,130579,54.60,Revenue,Lyreco UK Ltd,17623
Chorley Borough Council,http://statistics.data.gov.uk/id/local-authority/30UE,Unapportionable Central OHeads,1009,Policy & Governance,Stationery,40050,"Printing, Stationery & General",5026,Lyreco A1 Flipchart Pads - Pack Of 5 (5 X 40 Sheets),04/07/2018,130579,9.27,Revenue,Lyreco UK Ltd,17623
Chorley Borough Council,http://statistics.data.gov.uk/id/local-authority/30UE,Service Management & Support,1009,Customer & Digital,Grounds Maintenance Contractor,20043,Grounds Maintenance Costs,5013,As per invoice 32 - from tree works carried out 01/05/18 - 31/05/18. Works is listed on itemised invoice,25/07/2018,131155,"2,350.00",Revenue,M J Walker,62044
Chorley Borough Council,http://statistics.data.gov.uk/id/local-authority/30UE,Service Management & Support,1009,Customer & Digital,Grounds Maintenance Contractor,20043,Grounds Maintenance Costs,5013,as per invoice 33 for tree works carried out 01/06/18 - 29/06/18. Tree works listed on itemised invoice,25/07/2018,131156,"3,070.00",Revenue,M J Walker,62044
Chorley Borough Council,http://statistics.data.gov.uk/id/local-authority/30UE,Capital,Capital,Early Intervention,Grants,3002,Capital Expenditure,Capital,ADDRESS REDACTED,27/07/2018,131214,"4,295.00",Capital,M.J Park Building Contractors,20367
Chorley Borough Council,http://statistics.data.gov.uk/id/local-authority/30UE,Capital,Capital,Early Intervention,Grants,3002,Capital Expenditure,Capital,ADDRESS REDACTED,27/07/2018,131223,"3,775.00",Capital,M.J Park Building Contractors,20367
Chorley Borough Council,http://statistics.data.gov.uk/id/local-authority/30UE,Tourism,1039,Policy & Governance,Publicity - Advertising,40157,Miscellaneous Expenses,5034,Chorley Flower Show advert,18/07/2018,130794,500.00,Revenue,Marketing Lancashire,65208
Chorley Borough Council,http://statistics.data.gov.uk/id/local-authority/30UE,Tourism,1039,Policy & Governance,Promotional Expenses,40159,Miscellaneous Expenses,5034,Chorley Flower Show Sponsorship Commission,25/07/2018,131200,282.00,Revenue,Marvel At Everything Ltd,70955
Chorley Borough Council,http://statistics.data.gov.uk/id/local-authority/30UE,Building Control,1090,Policy & Governance,Operational Employees Salaries,10000,Direct Employee Expenses,5001,Invoice for NAME REDACTED for w/c 07/05/18,04/07/2018,130639,826.50,Revenue,Matchtech,77343
Chorley Borough Council,http://statistics.data.gov.uk/id/local-authority/30UE,Central Support Services,1009,Policy & Governance,Agency Staff,13000,Direct Employee Expenses,5001,AGENCY FEES,18/07/2018,130503,348.80,Revenue,Matrix SCM Ltd,22128
Chorley Borough Council,http://statistics.data.gov.uk/id/local-authority/30UE,Unapportionable Central OHeads,1009,Policy & Governance,Agency Staff,13000,Direct Employee Expenses,5001,AGENCY FEES,18/07/2018,130503,715.16,Revenue,Matrix SCM Ltd,22128
Chorley Borough Council,http://statistics.data.gov.uk/id/local-authority/30UE,Central Support Services,1009,Policy & Governance,Agency Staff,13000,Direct Employee Expenses,5001,AGENCY FEES,18/07/2018,130503,775.09,Revenue,Matrix SCM Ltd,22128
Chorley Borough Council,http://statistics.data.gov.uk/id/local-authority/30UE,Central Support Services,1009,Policy & Governance,Agency Staff,13000,Direct Employee Expenses,5001,AGENCY FEES,18/07/2018,130747,"1,002.80",Revenue,Matrix SCM Ltd,22128
Chorley Borough Council,http://statistics.data.gov.uk/id/local-authority/30UE,Unapportionable Central OHeads,1009,Policy & Governance,Agency Staff,13000,Direct Employee Expenses,5001,AGENCY FEES,18/07/2018,130747,416.42,Revenue,Matrix SCM Ltd,22128
Chorley Borough Council,http://statistics.data.gov.uk/id/local-authority/30UE,Central Support Services,1009,Policy & Governance,Agency Staff,13000,Direct Employee Expenses,5001,AGENCY FEES,18/07/2018,130747,"1,459.25",Revenue,Matrix SCM Ltd,22128
Chorley Borough Council,http://statistics.data.gov.uk/id/local-authority/30UE,Central Support Services,1009,Policy & Governance,Agency Staff,13000,Direct Employee Expenses,5001,AGENCY FEES,18/07/2018,130978,697.60,Revenue,Matrix SCM Ltd,22128
Chorley Borough Council,http://statistics.data.gov.uk/id/local-authority/30UE,Unapportionable Central OHeads,1009,Policy & Governance,Agency Staff,13000,Direct Employee Expenses,5001,AGENCY FEES,18/07/2018,130978,337.97,Revenue,Matrix SCM Ltd,22128
Chorley Borough Council,http://statistics.data.gov.uk/id/local-authority/30UE,Central Support Services,1009,Policy & Governance,Agency Staff,13000,Direct Employee Expenses,5001,AGENCY FEES,18/07/2018,130978,775.08,Revenue,Matrix SCM Ltd,22128
Chorley Borough Council,http://statistics.data.gov.uk/id/local-authority/30UE,Central Support Services,1009,Policy & Governance,Agency Staff,13000,Direct Employee Expenses,5001,AGENCY FEES,25/07/2018,131125,697.60,Revenue,Matrix SCM Ltd,22128
Chorley Borough Council,http://statistics.data.gov.uk/id/local-authority/30UE,Unapportionable Central OHeads,1009,Policy & Governance,Agency Staff,13000,Direct Employee Expenses,5001,AGENCY FEES,25/07/2018,131125,422.46,Revenue,Matrix SCM Ltd,22128
Chorley Borough Council,http://statistics.data.gov.uk/id/local-authority/30UE,Service Management & Support,1009,Customer & Digital,Supplies-Grounds Maintenance,40025,"Equipment, Furniture & Materia",5023,20 ton of grade 1 top soil,18/07/2018,131010,400.00,Revenue,Mc & Ma Stewart (Haulage Ltd),16627
Chorley Borough Council,http://statistics.data.gov.uk/id/local-authority/30UE,Collection Fund Revenue Accoun,,Policy & Governance,NNDR Central Share,2034,Precepts & Collection Fund,Precept,sahre,04/07/2018,129781,"1,105,460.00",Revenue,Ministry of Housing Communities & Local Government,16280
Chorley Borough Council,http://statistics.data.gov.uk/id/local-authority/30UE,Collection Fund Revenue Accoun,,Policy & Governance,Transitional Protection,2033,Precepts & Collection Fund,Precept,transitional relief,04/07/2018,129781,"89,066.00",Revenue,Ministry of Housing Communities & Local Government,16280
Chorley Borough Council,http://statistics.data.gov.uk/id/local-authority/30UE,Collection Fund Revenue Accoun,,Policy & Governance,NNDR Central Share,2034,Precepts & Collection Fund,Precept,central share BR,04/07/2018,130148,"1,105,460.00",Revenue,Ministry of Housing Communities & Local Government,16280
Chorley Borough Council,http://statistics.data.gov.uk/id/local-authority/30UE,Collection Fund Revenue Accoun,,Policy & Governance,Transitional Protection,2033,Precepts & Collection Fund,Precept,transitionaal relief,04/07/2018,130148,"89,066.00",Revenue,Ministry of Housing Communities & Local Government,16280
Chorley Borough Council,http://statistics.data.gov.uk/id/local-authority/30UE,Capital,Capital,Early Intervention,Grants,3002,Capital Expenditure,Capital,ADDRESS REDACTED,27/07/2018,131183,"4,046.57",Capital,Mint Northwest Ltd,65607
Chorley Borough Council,http://statistics.data.gov.uk/id/local-authority/30UE,Private Sector HSG Renewal,1073,Early Intervention,External Contractor,40198,Miscellaneous Expenses,5034,REF 24717,11/07/2018,130460,198.00,Revenue,Mobility Care Services,70841
Chorley Borough Council,http://statistics.data.gov.uk/id/local-authority/30UE,Private Sector HSG Renewal,1073,Early Intervention,External Contractor,40198,Miscellaneous Expenses,5034,REF24718,11/07/2018,130460,66.00,Revenue,Mobility Care Services,70841
Chorley Borough Council,http://statistics.data.gov.uk/id/local-authority/30UE,Private Sector HSG Renewal,1073,Early Intervention,External Contractor,40198,Miscellaneous Expenses,5034,REF24719,11/07/2018,130460,111.00,Revenue,Mobility Care Services,70841
Chorley Borough Council,http://statistics.data.gov.uk/id/local-authority/30UE,Private Sector HSG Renewal,1073,Early Intervention,External Contractor,40198,Miscellaneous Expenses,5034,REF24729,11/07/2018,130460,172.00,Revenue,Mobility Care Services,70841
Chorley Borough Council,http://statistics.data.gov.uk/id/local-authority/30UE,Private Sector HSG Renewal,1073,Early Intervention,External Contractor,40198,Miscellaneous Expenses,5034,REF24730,11/07/2018,130460,132.00,Revenue,Mobility Care Services,70841
Chorley Borough Council,http://statistics.data.gov.uk/id/local-authority/30UE,Private Sector HSG Renewal,1073,Early Intervention,External Contractor,40198,Miscellaneous Expenses,5034,REF24731,11/07/2018,130460,66.00,Revenue,Mobility Care Services,70841
Chorley Borough Council,http://statistics.data.gov.uk/id/local-authority/30UE,Private Sector HSG Renewal,1073,Early Intervention,External Contractor,40198,Miscellaneous Expenses,5034,REF24736,11/07/2018,130460,66.00,Revenue,Mobility Care Services,70841
Chorley Borough Council,http://statistics.data.gov.uk/id/local-authority/30UE,Private Sector HSG Renewal,1073,Early Intervention,External Contractor,40198,Miscellaneous Expenses,5034,REF24739,11/07/2018,130460,110.00,Revenue,Mobility Care Services,70841
Chorley Borough Council,http://statistics.data.gov.uk/id/local-authority/30UE,Private Sector HSG Renewal,1073,Early Intervention,External Contractor,40198,Miscellaneous Expenses,5034,REF24740,11/07/2018,130460,86.00,Revenue,Mobility Care Services,70841
Chorley Borough Council,http://statistics.data.gov.uk/id/local-authority/30UE,Private Sector HSG Renewal,1073,Early Intervention,External Contractor,40198,Miscellaneous Expenses,5034,REF24742,11/07/2018,130460,66.00,Revenue,Mobility Care Services,70841
Chorley Borough Council,http://statistics.data.gov.uk/id/local-authority/30UE,Private Sector HSG Renewal,1073,Early Intervention,External Contractor,40198,Miscellaneous Expenses,5034,REF24743,11/07/2018,130460,66.00,Revenue,Mobility Care Services,70841
Chorley Borough Council,http://statistics.data.gov.uk/id/local-authority/30UE,Private Sector HSG Renewal,1073,Early Intervention,External Contractor,40198,Miscellaneous Expenses,5034,REF24744,11/07/2018,130460,66.00,Revenue,Mobility Care Services,70841
Chorley Borough Council,http://statistics.data.gov.uk/id/local-authority/30UE,Private Sector HSG Renewal,1073,Early Intervention,External Contractor,40198,Miscellaneous Expenses,5034,REF24746,11/07/2018,130460,132.00,Revenue,Mobility Care Services,70841
Chorley Borough Council,http://statistics.data.gov.uk/id/local-authority/30UE,Private Sector HSG Renewal,1073,Early Intervention,External Contractor,40198,Miscellaneous Expenses,5034,REF24747,11/07/2018,130460,132.00,Revenue,Mobility Care Services,70841
Chorley Borough Council,http://statistics.data.gov.uk/id/local-authority/30UE,Private Sector HSG Renewal,1073,Early Intervention,External Contractor,40198,Miscellaneous Expenses,5034,REF24748,11/07/2018,130460,160.00,Revenue,Mobility Care Services,70841
Chorley Borough Council,http://statistics.data.gov.uk/id/local-authority/30UE,Private Sector HSG Renewal,1073,Early Intervention,External Contractor,40198,Miscellaneous Expenses,5034,REF24749,11/07/2018,130460,111.00,Revenue,Mobility Care Services,70841
Chorley Borough Council,http://statistics.data.gov.uk/id/local-authority/30UE,Private Sector HSG Renewal,1073,Early Intervention,External Contractor,40198,Miscellaneous Expenses,5034,REF24753,11/07/2018,130460,140.00,Revenue,Mobility Care Services,70841
Chorley Borough Council,http://statistics.data.gov.uk/id/local-authority/30UE,Private Sector HSG Renewal,1073,Early Intervention,External Contractor,40198,Miscellaneous Expenses,5034,REF24757,11/07/2018,130460,128.00,Revenue,Mobility Care Services,70841
Chorley Borough Council,http://statistics.data.gov.uk/id/local-authority/30UE,Private Sector HSG Renewal,1073,Early Intervention,External Contractor,40198,Miscellaneous Expenses,5034,REF24758,11/07/2018,130460,86.00,Revenue,Mobility Care Services,70841
Chorley Borough Council,http://statistics.data.gov.uk/id/local-authority/30UE,Private Sector HSG Renewal,1073,Early Intervention,External Contractor,40198,Miscellaneous Expenses,5034,REF24759,11/07/2018,130460,128.00,Revenue,Mobility Care Services,70841
Chorley Borough Council,http://statistics.data.gov.uk/id/local-authority/30UE,Private Sector HSG Renewal,1073,Early Intervention,External Contractor,40198,Miscellaneous Expenses,5034,REF24760,11/07/2018,130460,128.00,Revenue,Mobility Care Services,70841
Chorley Borough Council,http://statistics.data.gov.uk/id/local-authority/30UE,Private Sector HSG Renewal,1073,Early Intervention,External Contractor,40198,Miscellaneous Expenses,5034,REF24762,11/07/2018,130460,256.00,Revenue,Mobility Care Services,70841
Chorley Borough Council,http://statistics.data.gov.uk/id/local-authority/30UE,Private Sector HSG Renewal,1073,Early Intervention,External Contractor,40198,Miscellaneous Expenses,5034,REF24765,11/07/2018,130460,66.00,Revenue,Mobility Care Services,70841
Chorley Borough Council,http://statistics.data.gov.uk/id/local-authority/30UE,Private Sector HSG Renewal,1073,Early Intervention,External Contractor,40198,Miscellaneous Expenses,5034,REF24766,11/07/2018,130460,256.00,Revenue,Mobility Care Services,70841
Chorley Borough Council,http://statistics.data.gov.uk/id/local-authority/30UE,Private Sector HSG Renewal,1073,Early Intervention,External Contractor,40198,Miscellaneous Expenses,5034,REF24767,11/07/2018,130460,128.00,Revenue,Mobility Care Services,70841
Chorley Borough Council,http://statistics.data.gov.uk/id/local-authority/30UE,Private Sector HSG Renewal,1073,Early Intervention,External Contractor,40198,Miscellaneous Expenses,5034,REF24768,11/07/2018,130460,256.00,Revenue,Mobility Care Services,70841
Chorley Borough Council,http://statistics.data.gov.uk/id/local-authority/30UE,Private Sector HSG Renewal,1073,Early Intervention,External Contractor,40198,Miscellaneous Expenses,5034,REF24779,11/07/2018,130460,132.00,Revenue,Mobility Care Services,70841
Chorley Borough Council,http://statistics.data.gov.uk/id/local-authority/30UE,Private Sector HSG Renewal,1073,Early Intervention,External Contractor,40198,Miscellaneous Expenses,5034,REF24783,11/07/2018,130460,420.00,Revenue,Mobility Care Services,70841
Chorley Borough Council,http://statistics.data.gov.uk/id/local-authority/30UE,Private Sector HSG Renewal,1073,Early Intervention,External Contractor,40198,Miscellaneous Expenses,5034,REF24784,11/07/2018,130460,280.00,Revenue,Mobility Care Services,70841
Chorley Borough Council,http://statistics.data.gov.uk/id/local-authority/30UE,Private Sector HSG Renewal,1073,Early Intervention,External Contractor,40198,Miscellaneous Expenses,5034,REF24786,11/07/2018,130460,66.00,Revenue,Mobility Care Services,70841
Chorley Borough Council,http://statistics.data.gov.uk/id/local-authority/30UE,Private Sector HSG Renewal,1073,Early Intervention,External Contractor,40198,Miscellaneous Expenses,5034,REF24785,11/07/2018,130460,256.00,Revenue,Mobility Care Services,70841
Chorley Borough Council,http://statistics.data.gov.uk/id/local-authority/30UE,Private Sector HSG Renewal,1073,Early Intervention,External Contractor,40198,Miscellaneous Expenses,5034,REF24787,11/07/2018,130460,111.00,Revenue,Mobility Care Services,70841
Chorley Borough Council,http://statistics.data.gov.uk/id/local-authority/30UE,Private Sector HSG Renewal,1073,Early Intervention,External Contractor,40198,Miscellaneous Expenses,5034,REF24788,11/07/2018,130460,111.00,Revenue,Mobility Care Services,70841
Chorley Borough Council,http://statistics.data.gov.uk/id/local-authority/30UE,Private Sector HSG Renewal,1073,Early Intervention,External Contractor,40198,Miscellaneous Expenses,5034,REF24789,11/07/2018,130460,128.00,Revenue,Mobility Care Services,70841
Chorley Borough Council,http://statistics.data.gov.uk/id/local-authority/30UE,Private Sector HSG Renewal,1073,Early Intervention,External Contractor,40198,Miscellaneous Expenses,5034,REF24790,11/07/2018,130460,111.00,Revenue,Mobility Care Services,70841
Chorley Borough Council,http://statistics.data.gov.uk/id/local-authority/30UE,Private Sector HSG Renewal,1073,Early Intervention,External Contractor,40198,Miscellaneous Expenses,5034,REF24791,11/07/2018,130460,256.00,Revenue,Mobility Care Services,70841
Chorley Borough Council,http://statistics.data.gov.uk/id/local-authority/30UE,Private Sector HSG Renewal,1073,Early Intervention,External Contractor,40198,Miscellaneous Expenses,5034,REF24792,11/07/2018,130460,111.00,Revenue,Mobility Care Services,70841
Chorley Borough Council,http://statistics.data.gov.uk/id/local-authority/30UE,Corporate Management,1008,Customer & Digital,Miscellaneous Expenses,40200,Miscellaneous Expenses,5034,burial grant,18/07/2018,131062,543.70,Revenue,NAME REDACTED,77475
Chorley Borough Council,http://statistics.data.gov.uk/id/local-authority/30UE,Corporate Management,1008,Customer & Digital,Other Contributions,40145,Grants and Subscriptions,5031,PLRG,18/07/2018,131061,"4,706.00",Revenue,NAME REDACTED,74840
Chorley Borough Council,http://statistics.data.gov.uk/id/local-authority/30UE,Capital,Capital,Early Intervention,Grants,3002,Capital Expenditure,Capital,works,27/07/2018,131297,"1,073.09",Capital,NAME REDACTED,77492
Chorley Borough Council,http://statistics.data.gov.uk/id/local-authority/30UE,Business Support,1095,Business Development & Growth,Grants To Other Organisations,40127,Grants and Subscriptions,5031,shop front improvement grant,06/07/2018,130771,"2,325.00",Revenue,NAME REDACTED,77448
Chorley Borough Council,http://statistics.data.gov.uk/id/local-authority/30UE,Corporate Management,1008,Customer & Digital,Consultants` Fees,40077,Services,5027,consultants fees,18/07/2018,130892,"1,500.00",Revenue,Mr Roger Ashcroft,77441
Chorley Borough Council,http://statistics.data.gov.uk/id/local-authority/30UE,Service Management & Support,1009,Customer & Digital,Grounds Maintenance Contractor,20043,Grounds Maintenance Costs,5013,Works to be completed within the Muslim section. Remove tree stumps and re-level ground,18/07/2018,130790,"1,900.00",Revenue,Mr Stephen Scambler,16710
Chorley Borough Council,http://statistics.data.gov.uk/id/local-authority/30UE,Business Support,1095,Business Development & Growth,Grants To Other Organisations,40127,Grants and Subscriptions,5031,starting business grant,25/07/2018,131157,250.00,Revenue,NAME REDACTED,77460
Chorley Borough Council,http://statistics.data.gov.uk/id/local-authority/30UE,Tourism,1039,Policy & Governance,Publicity - Advertising,40157,Miscellaneous Expenses,5034,Chorley Flower Show Wristbands,13/07/2018,130930,"1,938.00",Revenue,Munco International T/A Adband,60837
Chorley Borough Council,http://statistics.data.gov.uk/id/local-authority/30UE,Development Control,1091,Customer & Digital,Consultants` Fees,40077,Services,5027,Services of Murray Lloyd to assess the viability case put forward by the applicants (Xpect Developments) planning application ref,20/07/2018,131078,"2,750.00",Revenue,Murray Lloyd Associates Ltd,76626
Chorley Borough Council,http://statistics.data.gov.uk/id/local-authority/30UE,Service Management & Support,1009,Customer & Digital,Grounds Maintenance Contractor,20043,Grounds Maintenance Costs,5013,"as per invoice 1495 - Holiday relief cover 25th June 2018 to 12th July 2018 @ 40 per hour	 25th June 28th June @ 15hrs	 2nd July",25/07/2018,131116,"1,720.00",Revenue,MW Grass Machinery,21616
Chorley Borough Council,http://statistics.data.gov.uk/id/local-authority/30UE,Capital,Capital,Business Development & Growth,Architects Fees,3022,Capital Expenditure,Capital,Design of an interpretation board for the Garden of Reflection -Astley Park,20/07/2018,131132,275.00,Capital,Nature Sign Design,64676
Chorley Borough Council,http://statistics.data.gov.uk/id/local-authority/30UE,Service Management & Support,1009,Customer & Digital,Supplies-Grounds Maintenance,40025,"Equipment, Furniture & Materia",5023,5kg - 100% native british wildflower seed (annual),04/07/2018,130667,250.00,Revenue,Naturescape,62058
Chorley Borough Council,http://statistics.data.gov.uk/id/local-authority/30UE,Unapportionable Central OHeads,1009,Policy & Governance,Publicity - Advertising,40157,Miscellaneous Expenses,5034,Great days out adverts,04/07/2018,130725,531.00,Revenue,Newsquest (Lancashire) Limited,18117
Chorley Borough Council,http://statistics.data.gov.uk/id/local-authority/30UE,Capital,Capital,Customer & Digital,Main Contractor,3007,Capital Expenditure,Capital,,25/07/2018,131248,"133,532.56",Capital,Next Big Thing Developments,77044
Chorley Borough Council,http://statistics.data.gov.uk/id/local-authority/30UE,Business Support,1095,Business Development & Growth,Grants To Other Organisations,40127,Grants and Subscriptions,5031,improvement grant,13/07/2018,130977,"2,296.29",Revenue,Nicole Griffin  Hair Designs Ltd,77417
Chorley Borough Council,http://statistics.data.gov.uk/id/local-authority/30UE,Business Support,1095,Business Development & Growth,Grants To Other Organisations,40127,Grants and Subscriptions,5031,grant for shop front,20/07/2018,131122,429.30,Revenue,Nicole Griffin  Hair Designs Ltd,77417
Chorley Borough Council,http://statistics.data.gov.uk/id/local-authority/30UE,Democratic Represent and  Mgnt,1007,Policy & Governance,Publications,40054,"Printing, Stationery & General",5026,rural services network 2018/2019,20/07/2018,131148,600.00,Revenue,North Kesteven District Council,65910
Chorley Borough Council,http://statistics.data.gov.uk/id/local-authority/30UE,Service Management & Support,1009,Customer & Digital,Vehicles and Plant Maintenance,30045,Direct Transport Costs,5016,supply and deliver as per your quotation dated 05/07/18 : 3 x pre-made belly brush 5 x wire channel brush,11/07/2018,130866,450.71,Revenue,Northern Municipal Spares Ltd,17752
Chorley Borough Council,http://statistics.data.gov.uk/id/local-authority/30UE,Parking Services,1066,Business Development & Growth,Electricity,20013,Energy Costs,5006,car park 1/5/18 to 31/5/18,18/07/2018,130459,1.22,Revenue,Npower Commercial Gas,16814
Chorley Borough Council,http://statistics.data.gov.uk/id/local-authority/30UE,Parking Services,1066,Business Development & Growth,Electricity,20013,Energy Costs,5006,car park 1/4/18 to 30/4/18,18/07/2018,130459,1.18,Revenue,Npower Commercial Gas,16814
Chorley Borough Council,http://statistics.data.gov.uk/id/local-authority/30UE,Parking Services,1066,Business Development & Growth,Electricity,20013,Energy Costs,5006,Pay & display1/5/18 to 31/5/18,18/07/2018,130459,122.24,Revenue,Npower Commercial Gas,16814
Chorley Borough Council,http://statistics.data.gov.uk/id/local-authority/30UE,Parking Services,1066,Business Development & Growth,Electricity,20013,Energy Costs,5006,pay & display 1/4/18 to 30/4/18,18/07/2018,130459,118.30,Revenue,Npower Commercial Gas,16814
Chorley Borough Council,http://statistics.data.gov.uk/id/local-authority/30UE,Central Support Services,1009,Business Development & Growth,Electricity,20013,Energy Costs,5006,CCTV CAMERA 1/5/18 to 31/5/18,18/07/2018,130459,302.42,Revenue,Npower Commercial Gas,16814
Chorley Borough Council,http://statistics.data.gov.uk/id/local-authority/30UE,Central Support Services,1009,Business Development & Growth,Electricity,20013,Energy Costs,5006,cctv camera 1/4/18 to 30/4/18,18/07/2018,130459,292.67,Revenue,Npower Commercial Gas,16814
Chorley Borough Council,http://statistics.data.gov.uk/id/local-authority/30UE,Unapportionable Central OHeads,1009,Business Development & Growth,Electricity,20013,Energy Costs,5006,union street 1/6/18 to 30/6/18,18/07/2018,130867,"3,883.89",Revenue,Npower Commercial Gas,16814
Chorley Borough Council,http://statistics.data.gov.uk/id/local-authority/30UE,Unapportionable Central OHeads,1009,Business Development & Growth,Electricity,20013,Energy Costs,5006,bengal street 1/6/18 to 30/6/18,18/07/2018,130867,702.34,Revenue,Npower Commercial Gas,16814
Chorley Borough Council,http://statistics.data.gov.uk/id/local-authority/30UE,Unapportionable Central OHeads,1009,Business Development & Growth,Electricity,20013,Energy Costs,5006,town hall 1/6/18 to 30/6/18,18/07/2018,130867,"1,723.40",Revenue,Npower Commercial Gas,16814
Chorley Borough Council,http://statistics.data.gov.uk/id/local-authority/30UE,Democratic Represent and  Mgnt,1007,Business Development & Growth,Electricity,20013,Energy Costs,5006,tunley holme 1/6/18 to 30/6/18,18/07/2018,130867,183.35,Revenue,Npower Commercial Gas,16814
Chorley Borough Council,http://statistics.data.gov.uk/id/local-authority/30UE,Parking Services,1066,Business Development & Growth,Electricity,20013,Energy Costs,5006,car park 1/6/18 to 30/6/18,18/07/2018,131037,1.18,Revenue,Npower Commercial Gas,16814
Chorley Borough Council,http://statistics.data.gov.uk/id/local-authority/30UE,Parking Services,1066,Business Development & Growth,Electricity,20013,Energy Costs,5006,pay & dispaly 1/6/18 to 30/6/18,18/07/2018,131037,118.30,Revenue,Npower Commercial Gas,16814
Chorley Borough Council,http://statistics.data.gov.uk/id/local-authority/30UE,Central Support Services,1009,Business Development & Growth,Electricity,20013,Energy Costs,5006,cctv camera 1/6/18 to 30/6/18,18/07/2018,131037,292.67,Revenue,Npower Commercial Gas,16814
Chorley Borough Council,http://statistics.data.gov.uk/id/local-authority/30UE,Parking Services,1066,Business Development & Growth,External Contractors,50008,Private Contractors,5042,"Provision of off street car park enforcement, cash collection, cash counting facilities and third party bulk cash collections April 18",04/07/2018,130723,"4,506.99",Revenue,NSL Limited,67253
Chorley Borough Council,http://statistics.data.gov.uk/id/local-authority/30UE,Central Support Services,1009,Customer & Digital,Computer Equipment-Purchase,40098,Communication and Computing,5028,1 x 400GB 2.5`` Enterprise Plus SAS SSD           @ 650.00,06/07/2018,130608,650.00,Revenue,Nviron Limited,77141
Chorley Borough Council,http://statistics.data.gov.uk/id/local-authority/30UE,Central Support Services,1009,Customer & Digital,Computer Equipment-Purchase,40098,Communication and Computing,5028,"4 x GP-QSFP-40GE-1LR-C 40GBASE-LR4 QSFP, 1310nm, 10km over SMF @ 1299.00",20/07/2018,130748,"5,196.00",Revenue,Nviron Limited,77141
Chorley Borough Council,http://statistics.data.gov.uk/id/local-authority/30UE,Central Support Services,1009,Customer & Digital,Computer Equipment-Purchase,40098,Communication and Computing,5028,2 x GP-10GSFP-1L-C1 FORCE10 SFP+ LR @ 125.00,20/07/2018,130748,250.00,Revenue,Nviron Limited,77141
Chorley Borough Council,http://statistics.data.gov.uk/id/local-authority/30UE,Central Support Services,1009,Customer & Digital,Miscellaneous Expenses,40200,Miscellaneous Expenses,5034,"Stage 1 � Cloud strategy workstream 	Workshops with Chorley to identify options, refine the vision solidify 	Development of cloud ",20/07/2018,130899,"4,650.00",Revenue,Nviron Limited,77141
Chorley Borough Council,http://statistics.data.gov.uk/id/local-authority/30UE,Unapportionable Central OHeads,1009,Policy & Governance,Service Fees,40056,Services,5027,Occupational Health charges for June 2018,18/07/2018,130757,445.00,Revenue,People Asset Management Limited,76487
Chorley Borough Council,http://statistics.data.gov.uk/id/local-authority/30UE,Unapportionable Central OHeads,1009,Policy & Governance,Service Fees,40056,Services,5027,,18/07/2018,130757,250.00,Revenue,People Asset Management Limited,76487
Chorley Borough Council,http://statistics.data.gov.uk/id/local-authority/30UE,Capital,Capital,Business Development & Growth,Other Capital Related Fees,3024,Capital Expenditure,Capital,Primrose Gardens June 2018,18/07/2018,130779,"4,328.25",Capital,Perfect Circle JV Ltd,76438
Chorley Borough Council,http://statistics.data.gov.uk/id/local-authority/30UE,Central Support Services,1009,Early Intervention,External Contractor,40198,Miscellaneous Expenses,5034,Pest Control services for 2018/19,25/07/2018,130697,340.00,Revenue,Peter L Johnson,16727
Chorley Borough Council,http://statistics.data.gov.uk/id/local-authority/30UE,Central Support Services,1009,Early Intervention,External Contractor,40198,Miscellaneous Expenses,5034,Pest Control services for 2018/19,25/07/2018,130814,340.00,Revenue,Peter L Johnson,16727
Chorley Borough Council,http://statistics.data.gov.uk/id/local-authority/30UE,Central Support Services,1009,Early Intervention,External Contractor,40198,Miscellaneous Expenses,5034,Pest Control services for 2018/19,25/07/2018,131035,340.00,Revenue,Peter L Johnson,16727
Chorley Borough Council,http://statistics.data.gov.uk/id/local-authority/30UE,Central Support Services,1009,Early Intervention,External Contractor,40198,Miscellaneous Expenses,5034,Pest Control services for 2018/19,27/07/2018,131147,340.00,Revenue,Peter L Johnson,16727
Chorley Borough Council,http://statistics.data.gov.uk/id/local-authority/30UE,Central Support Services,1009,Early Intervention,Miscellaneous Expenses,40200,Miscellaneous Expenses,5034,Hutton Grammar School CSE awareness.  Funded by the PCC through Community Safety Partnership,25/07/2018,131034,759.40,Revenue,Phil Mitchell,77368
Chorley Borough Council,http://statistics.data.gov.uk/id/local-authority/30UE,Unapportionable Central OHeads,1009,Policy & Governance,Asset Maintenance Fund,20012,Repairs Maintenance & Alts,5005,for QS services to estimate costs of making some interior alterations to the town hall building.,11/07/2018,130788,"4,000.00",Revenue,Pick Everard,76515
Chorley Borough Council,http://statistics.data.gov.uk/id/local-authority/30UE,Democratic Represent and  Mgnt,1007,Customer & Digital,Supplies-Grounds Maintenance,40025,"Equipment, Furniture & Materia",5023,20 hanging baskets & 200 Begonia mixed,18/07/2018,131060,325.00,Revenue,Pole Green Nurseries,20641
Chorley Borough Council,http://statistics.data.gov.uk/id/local-authority/30UE,Precepts and Collection Fund,Precepts,Policy & Governance,LPA Precept,2010,Precepts & Collection Fund,Precept,ctax precept,04/07/2018,129779,"654,578.00",Revenue,Police & Crime Commissioner,17438
Chorley Borough Council,http://statistics.data.gov.uk/id/local-authority/30UE,Precepts and Collection Fund,Precepts,Policy & Governance,LPA Precept,2010,Precepts & Collection Fund,Precept,pcc council tax precept,04/07/2018,130147,"654,586.00",Revenue,Police & Crime Commissioner,17438
Chorley Borough Council,http://statistics.data.gov.uk/id/local-authority/30UE,Economic Development,1096,Business Development & Growth,Miscellaneous Expenses,40200,Miscellaneous Expenses,5034,As per reference 10848/1 Strip previous print,04/07/2018,130645,20.00,Revenue,Poppy Signs Ltd,21898
Chorley Borough Council,http://statistics.data.gov.uk/id/local-authority/30UE,Economic Development,1096,Business Development & Growth,Miscellaneous Expenses,40200,Miscellaneous Expenses,5034,"Large full height sticker, size as previous photo pictures. Includes Print & installation",04/07/2018,130645,245.00,Revenue,Poppy Signs Ltd,21898
Chorley Borough Council,http://statistics.data.gov.uk/id/local-authority/30UE,Unapportionable Central OHeads,1009,Policy & Governance,Miscellaneous Expenses,40200,Miscellaneous Expenses,5034,2 x Check Out Chorley tear drops REF10898/1,06/07/2018,130758,287.97,Revenue,Poppy Signs Ltd,21898
Chorley Borough Council,http://statistics.data.gov.uk/id/local-authority/30UE,Unapportionable Central OHeads,1009,Policy & Governance,HR Approved Training Expenses,17001,Indirect Employee Expenses,5002,ILM Module 4 - 5 July 2018 - half day course delivery,25/07/2018,131092,600.00,Revenue,Potential Unearthed,22243
Chorley Borough Council,http://statistics.data.gov.uk/id/local-authority/30UE,Unapportionable Central OHeads,1009,Policy & Governance,HR Approved Training Expenses,17001,Indirect Employee Expenses,5002,Formal Quality Assessments x 10,25/07/2018,131092,200.00,Revenue,Potential Unearthed,22243
Chorley Borough Council,http://statistics.data.gov.uk/id/local-authority/30UE,Unapportionable Central OHeads,1009,Policy & Governance,HR Approved Training Expenses,17001,Indirect Employee Expenses,5002,Candidate Workbooks x 10,25/07/2018,131092,50.00,Revenue,Potential Unearthed,22243
Chorley Borough Council,http://statistics.data.gov.uk/id/local-authority/30UE,Unapportionable Central OHeads,1009,Customer & Digital,Performing Rights Society Fees,40148,Grants and Subscriptions,5031,1.4.18 - 31.3.19 PPLPP084 Background music -Telephone on hold ( 1 switch+30 lines)  272.67 PPLPP085 Background music ,11/07/2018,130802,"1,198.74",Revenue,PPL PRS Ltd,77455
Chorley Borough Council,http://statistics.data.gov.uk/id/local-authority/30UE,Unapportionable Central OHeads,1009,Policy & Governance,Refreshments,40036,Catering,5024,"Supply, Sanitation, provision of cups and water for all Pressure Coolers for Council Sites for the month of July 2018",04/07/2018,130672,431.00,Revenue,Pressure Coolers Ltd T/A Maestro International Ltd,19767
Chorley Borough Council,http://statistics.data.gov.uk/id/local-authority/30UE,Private Sector HSG Renewal,1073,Early Intervention,External Contractor,40198,Miscellaneous Expenses,5034,Provision of Handyperson services (funded by LCC IHIS) Q2 2018/19 for the period 1.7.18 to 30.9.18,13/07/2018,130972,"7,405.75",Revenue,Preston Care and Repair,50018
Chorley Borough Council,http://statistics.data.gov.uk/id/local-authority/30UE,Elections,1012,Policy & Governance,Postages,40082,Communication and Computing,5028,"Postage for initial canvass forms 51,048 properties",11/07/2018,130910,"14,242.39",Revenue,Print Image Facilities LLP,57870
Chorley Borough Council,http://statistics.data.gov.uk/id/local-authority/30UE,Unapportionable Central OHeads,1009,Business Development & Growth,Planned Maintenance,20006,Repairs Maintenance & Alts,5005,Clayton green rear ramp,11/07/2018,129995,"4,595.00",Revenue,R W Mayor Ltd,77386
Chorley Borough Council,http://statistics.data.gov.uk/id/local-authority/30UE,Unapportionable Central OHeads,1009,Business Development & Growth,Planned Maintenance,20006,Repairs Maintenance & Alts,5005,Clayton green front re-paving,11/07/2018,129996,"2,950.00",Revenue,R W Mayor Ltd,77386
Chorley Borough Council,http://statistics.data.gov.uk/id/local-authority/30UE,Control Accounts,Control,Policy & Governance,General Balances,100,Balance Sheet,Balance,,04/07/2018,130061,"4,772.50",Revenue,Reward Gateway (UK) Ltd,66814
Chorley Borough Council,http://statistics.data.gov.uk/id/local-authority/30UE,Corporate Management,1008,Policy & Governance,Other Fees,40212,Miscellaneous Expenses,5034,,06/07/2018,130791,"2,000.00",Revenue,Ribble Valley Borough Council,77109
Chorley Borough Council,http://statistics.data.gov.uk/id/local-authority/30UE,Central Support Services,1009,Early Intervention,Misc Employee Costs,18001,Indirect Employee Expenses,5002,EHL ANNUAL SUBS 2018/19,06/07/2018,130792,250.00,Revenue,Ribble Valley Borough Council,77109
Chorley Borough Council,http://statistics.data.gov.uk/id/local-authority/30UE,Central Support Services,1009,Early Intervention,Misc Employee Costs,18001,Indirect Employee Expenses,5002,EHL ANNUAL SUBS 2017/18,06/07/2018,130793,250.00,Revenue,Ribble Valley Borough Council,77109
Chorley Borough Council,http://statistics.data.gov.uk/id/local-authority/30UE,Non Domestic Rates Redistribut,,Policy & Governance,Tariff to Business Rates Pool,49002,Expenditure not in NCOS,,bus rates pool,04/07/2018,129778,"563,004.00",Revenue,Ribble Valley Borough Council DIRECT DEBIT ONLY,21100
Chorley Borough Council,http://statistics.data.gov.uk/id/local-authority/30UE,Non Domestic Rates Redistribut,,Policy & Governance,Tariff to Business Rates Pool,49002,Expenditure not in NCOS,,lancs bus rates pool,04/07/2018,130146,"563,004.00",Revenue,Ribble Valley Borough Council DIRECT DEBIT ONLY,21100
Chorley Borough Council,http://statistics.data.gov.uk/id/local-authority/30UE,Service Management & Support,1009,Customer & Digital,Supplies-Grounds Maintenance,40025,"Equipment, Furniture & Materia",5023,5L Trustee Amenity to be delivered to Bengal St depot,27/07/2018,131145,"1,080.00",Revenue,Rigby Taylor Ltd,16299
Chorley Borough Council,http://statistics.data.gov.uk/id/local-authority/30UE,Unapportionable Central OHeads,1009,Policy & Governance,Service Fees,40056,Services,5027,Bacon butties etc for 100% attendance event 26/06/18,06/07/2018,130746,345.00,Revenue,Rosie Posies,76102
Chorley Borough Council,http://statistics.data.gov.uk/id/local-authority/30UE,Tourism,1039,Policy & Governance,Professional Fees,40063,Services,5027,Flower staging,18/07/2018,131055,"7,333.70",Revenue,RPM Events,70613
Chorley Borough Council,http://statistics.data.gov.uk/id/local-authority/30UE,Service Management & Support,1009,Customer & Digital,Diesel/Derv,30007,Direct Transport Costs,5016,"Supply and delivery of 7,500L road diesel and 3,500L red diesel to Bengal Street depot, Chorley on morning of 04/07/18 ",11/07/2018,130813,"2,014.25",Revenue,Samuel Cooke & Co Ltd,17173
Chorley Borough Council,http://statistics.data.gov.uk/id/local-authority/30UE,Homelessness,1075,Early Intervention,External Contractor,40198,Miscellaneous Expenses,5034,"For concierge service at Cotswold Supported Housing, Cotswold Road, Chorley, Lancashire, PR7 3HW. For any services provided",06/07/2018,130780,"2,658.95",Revenue,Sector Security Services,19269
Chorley Borough Council,http://statistics.data.gov.uk/id/local-authority/30UE,Business Support,1095,Business Development & Growth,Security Service,40062,Services,5027,Security services at Market Walk Shopping Centre from 1st April 18 to 31st March 19 @6683 per month Contract No 754775,25/07/2018,131201,"6,459.45",Revenue,Securitas Security Services (UK) Ltd,70693
Chorley Borough Council,http://statistics.data.gov.uk/id/local-authority/30UE,Unapportionable Central OHeads,1009,Policy & Governance,General Subscriptions,40146,Grants and Subscriptions,5031,"North west Legal Consortium, 2018/19 Subscriptions",25/07/2018,131058,500.00,Revenue,Sefton MBC,20443
Chorley Borough Council,http://statistics.data.gov.uk/id/local-authority/30UE,Unapportionable Central OHeads,1009,Business Development & Growth,General Repairs - Reactive,20004,Repairs Maintenance & Alts,5005,Handrail at union st offices,11/07/2018,130499,"1,500.00",Revenue,SM Sheet Metal Ltd,21243
Chorley Borough Council,http://statistics.data.gov.uk/id/local-authority/30UE,Democratic Represent and  Mgnt,1007,Customer & Digital,Supplies-Grounds Maintenance,40025,"Equipment, Furniture & Materia",5023,To manufacture and  supply four metal Spitfire features with stands,25/07/2018,131108,"1,400.00",Revenue,SM Sheet Metal Ltd,21243
Chorley Borough Council,http://statistics.data.gov.uk/id/local-authority/30UE,Central Support Services,1009,Early Intervention,Miscellaneous Expenses,40200,Miscellaneous Expenses,5034,Robinson/Massey Mediation Referral - Spot purchase mediation referral,25/07/2018,131114,670.79,Revenue,Smile Mediation Ltd,62536
Chorley Borough Council,http://statistics.data.gov.uk/id/local-authority/30UE,Unapportionable Central OHeads,1009,Policy & Governance,IT Software - Annual Licences,40101,Communication and Computing,5028,Civica Financials - recharge costs for 2018/19,13/07/2018,131007,"14,495.81",Revenue,South Ribble Borough Council,17889
Chorley Borough Council,http://statistics.data.gov.uk/id/local-authority/30UE,Unapportionable Central OHeads,1009,Policy & Governance,Publications,40054,"Printing, Stationery & General",5026,CIPFA Publications Subscription 2018-19,13/07/2018,131008,"2,685.00",Revenue,South Ribble Borough Council,17889
Chorley Borough Council,http://statistics.data.gov.uk/id/local-authority/30UE,Unapportionable Central OHeads,1009,Policy & Governance,Service Fees to other Local Authorities,40076,Services,5027,Provision of Shared Assurance Services for 2018-19,13/07/2018,131009,"41,744.84",Revenue,South Ribble Borough Council,17889
Chorley Borough Council,http://statistics.data.gov.uk/id/local-authority/30UE,Elections,1012,Policy & Governance,Rent/Hire Of Premises,20017,Premises Rents,5007,Room hire for polling station 3 May 2018,04/07/2018,130696,250.00,Revenue,St Bedes Parish Centre,19876
Chorley Borough Council,http://statistics.data.gov.uk/id/local-authority/30UE,Democratic Represent and  Mgnt,1007,Policy & Governance,Processional Routes,40177,Miscellaneous Expenses,5034,Buffet for Legion D`Honneur Medal Presentation in Committee Room 1 Chorley Town Hall Friday 22/6/18 for approx 50 people,13/07/2018,130888,625.00,Revenue,St Catherines Social Enterprise Ltd,76345
Chorley Borough Council,http://statistics.data.gov.uk/id/local-authority/30UE,Capital,Capital,Business Development & Growth,Other Capital Related Fees,3024,Capital Expenditure,Capital,Provision of Public Realm & Highway Design Engineering services contract for a period of 30 months from w/c 5th June 2017,13/07/2018,130800,"2,925.00",Capital,Street Civil Engineering Limited,76750
Chorley Borough Council,http://statistics.data.gov.uk/id/local-authority/30UE,Community Development,1097,Policy & Governance,Core Funding Grants,40133,Grants and Subscriptions,5031,The provision of support for Community Safety during 2018/19,27/07/2018,131298,"4,000.00",Revenue,Street Pastors,21946
Chorley Borough Council,http://statistics.data.gov.uk/id/local-authority/30UE,Unapportionable Central OHeads,1009,Business Development & Growth,General Repairs - Reactive,20004,Repairs Maintenance & Alts,5005,Blanket order for reactive repairs,20/07/2018,130835,357.99,Revenue,Stringfellow Bldg Cntrctrs Ltd,17893
Chorley Borough Council,http://statistics.data.gov.uk/id/local-authority/30UE,Unapportionable Central OHeads,1009,Business Development & Growth,General Repairs - Reactive,20004,Repairs Maintenance & Alts,5005,Blanket order for reactive repairs,20/07/2018,130836,361.17,Revenue,Stringfellow Bldg Cntrctrs Ltd,17893
Chorley Borough Council,http://statistics.data.gov.uk/id/local-authority/30UE,Unapportionable Central OHeads,1009,Business Development & Growth,General Repairs - Reactive,20004,Repairs Maintenance & Alts,5005,Blanket order for reactive repairs,20/07/2018,130837,604.40,Revenue,Stringfellow Bldg Cntrctrs Ltd,17893
Chorley Borough Council,http://statistics.data.gov.uk/id/local-authority/30UE,Unapportionable Central OHeads,1009,Business Development & Growth,General Repairs - Reactive,20004,Repairs Maintenance & Alts,5005,Blanket order for reactive repairs,20/07/2018,130844,394.63,Revenue,Stringfellow Bldg Cntrctrs Ltd,17893
Chorley Borough Council,http://statistics.data.gov.uk/id/local-authority/30UE,Unapportionable Central OHeads,1009,Business Development & Growth,General Repairs - Reactive,20004,Repairs Maintenance & Alts,5005,Blanket order for reactive repairs,20/07/2018,130906,251.44,Revenue,Stringfellow Bldg Cntrctrs Ltd,17893
Chorley Borough Council,http://statistics.data.gov.uk/id/local-authority/30UE,Unapportionable Central OHeads,1009,Business Development & Growth,General Repairs - Reactive,20004,Repairs Maintenance & Alts,5005,Blanket order for reactive repairs,20/07/2018,130908,556.77,Revenue,Stringfellow Bldg Cntrctrs Ltd,17893
Chorley Borough Council,http://statistics.data.gov.uk/id/local-authority/30UE,Unapportionable Central OHeads,1009,Business Development & Growth,Asset Maintenance Fund,20012,Repairs Maintenance & Alts,5005,"Works to Bengal St 1st floor kitchen - To cut worktop for sink, drill holes in concrete floor for service, fit ply to wall for water heater",20/07/2018,130909,950.00,Revenue,Stringfellow Bldg Cntrctrs Ltd,17893
Chorley Borough Council,http://statistics.data.gov.uk/id/local-authority/30UE,Central Support Services,1009,Early Intervention,Miscellaneous Expenses,40200,Miscellaneous Expenses,5034,Painting of Clayton Telephone Box,20/07/2018,131109,420.00,Revenue,Stringfellow Bldg Cntrctrs Ltd,17893
Chorley Borough Council,http://statistics.data.gov.uk/id/local-authority/30UE,Economic Development,1096,Business Development & Growth,Survey Expenses,40069,Services,5027,18F255 - Park RoadTo undertake the topographical survey of the area highlighted and described within your email/survey,20/07/2018,131106,"1,100.00",Revenue,Survey Operations Ltd,55910
Chorley Borough Council,http://statistics.data.gov.uk/id/local-authority/30UE,Unapportionable Central OHeads,1009,Policy & Governance,Cleaning Materials,40019,"Equipment, Furniture & Materia",5023, TB Atlas thick bleach 5ltr QTY 4 boxes @ 1.55 per container 4 containers in total,04/07/2018,130065,12.56,Revenue,System Hygiene Ltd,16572
Chorley Borough Council,http://statistics.data.gov.uk/id/local-authority/30UE,Unapportionable Central OHeads,1009,Policy & Governance,Cleaning Materials,40019,"Equipment, Furniture & Materia",5023,MJ200R Mini Jumbo QTY 10 packs 12/pack @ 6.65 per pack 66.50,04/07/2018,130065,86.10,Revenue,System Hygiene Ltd,16572
Chorley Borough Council,http://statistics.data.gov.uk/id/local-authority/30UE,Unapportionable Central OHeads,1009,Policy & Governance,Cleaning Materials,40019,"Equipment, Furniture & Materia",5023, TRI Evans Vanodine Trigon handsoap unperfumed 5 L 5.52 QTY 4 boxes,04/07/2018,130065,22.08,Revenue,System Hygiene Ltd,16572
Chorley Borough Council,http://statistics.data.gov.uk/id/local-authority/30UE,Unapportionable Central OHeads,1009,Policy & Governance,Cleaning Materials,40019,"Equipment, Furniture & Materia",5023,EVER Everfresh Evens toilet cleaner apple 5L 3.38 per container QTY 4 boxes,04/07/2018,130065,13.52,Revenue,System Hygiene Ltd,16572
Chorley Borough Council,http://statistics.data.gov.uk/id/local-authority/30UE,Unapportionable Central OHeads,1009,Policy & Governance,Cleaning Materials,40019,"Equipment, Furniture & Materia",5023,HSC hard surface cleaner 5litre QTY 6  at 5.28 each,04/07/2018,130065,26.94,Revenue,System Hygiene Ltd,16572
Chorley Borough Council,http://statistics.data.gov.uk/id/local-authority/30UE,Unapportionable Central OHeads,1009,Policy & Governance,Cleaning Materials,40019,"Equipment, Furniture & Materia",5023,TR320 toilet rolls QTY 14 packs @ 36/pack at 5.50 per box,04/07/2018,130065,77.00,Revenue,System Hygiene Ltd,16572
Chorley Borough Council,http://statistics.data.gov.uk/id/local-authority/30UE,Unapportionable Central OHeads,1009,Policy & Governance,Cleaning Materials,40019,"Equipment, Furniture & Materia",5023,Paper towels 3600 green 1 fold QTY 15 boxes 10.10 per box,04/07/2018,130065,151.50,Revenue,System Hygiene Ltd,16572
Chorley Borough Council,http://statistics.data.gov.uk/id/local-authority/30UE,Unapportionable Central OHeads,1009,Policy & Governance,Cleaning Materials,40019,"Equipment, Furniture & Materia",5023,HENRY Vacuum bags 4.18 10 per pack QTY 2 boxes,04/07/2018,130065,9.10,Revenue,System Hygiene Ltd,16572
Chorley Borough Council,http://statistics.data.gov.uk/id/local-authority/30UE,Unapportionable Central OHeads,1009,Policy & Governance,Cleaning Materials,40019,"Equipment, Furniture & Materia",5023,CAF Spray Air fresh QTY 24 @0.70 each,04/07/2018,130065,12.00,Revenue,System Hygiene Ltd,16572
Chorley Borough Council,http://statistics.data.gov.uk/id/local-authority/30UE,Unapportionable Central OHeads,1009,Policy & Governance,Cleaning Materials,40019,"Equipment, Furniture & Materia",5023,SAF Stand up air freshener 12 per case and 3.36 per case QTY 3 cases,04/07/2018,130065,10.08,Revenue,System Hygiene Ltd,16572
Chorley Borough Council,http://statistics.data.gov.uk/id/local-authority/30UE,Unapportionable Central OHeads,1009,Policy & Governance,Cleaning Materials,40019,"Equipment, Furniture & Materia",5023,NVF Neutrodol X 3 Vacuum Fresh QTY 12 packets @ 1.07 each,04/07/2018,130065,12.84,Revenue,System Hygiene Ltd,16572
Chorley Borough Council,http://statistics.data.gov.uk/id/local-authority/30UE,Unapportionable Central OHeads,1009,Policy & Governance,Cleaning Materials,40019,"Equipment, Furniture & Materia",5023,DCS Green Dishcloths QTY 6 packs 10/pack @ 1.92 each,04/07/2018,130065,11.94,Revenue,System Hygiene Ltd,16572
Chorley Borough Council,http://statistics.data.gov.uk/id/local-authority/30UE,Unapportionable Central OHeads,1009,Policy & Governance,Cleaning Materials,40019,"Equipment, Furniture & Materia",5023,DCS Yellow Dishcloths QTY 10 packs 10/pack @ 1.92 each,04/07/2018,130065,19.90,Revenue,System Hygiene Ltd,16572
Chorley Borough Council,http://statistics.data.gov.uk/id/local-authority/30UE,Unapportionable Central OHeads,1009,Policy & Governance,Cleaning Materials,40019,"Equipment, Furniture & Materia",5023,DCS Red Dishcloths QTY 6 packs 10/pack @ 1.92 each,04/07/2018,130065,11.94,Revenue,System Hygiene Ltd,16572
Chorley Borough Council,http://statistics.data.gov.uk/id/local-authority/30UE,Unapportionable Central OHeads,1009,Policy & Governance,Cleaning Materials,40019,"Equipment, Furniture & Materia",5023,DCS Blue Dishcloths QTY 6 packs 10/pack @ 1.92 each,04/07/2018,130065,11.94,Revenue,System Hygiene Ltd,16572
Chorley Borough Council,http://statistics.data.gov.uk/id/local-authority/30UE,Unapportionable Central OHeads,1009,Policy & Governance,Cleaning Materials,40019,"Equipment, Furniture & Materia",5023,DPB dustpan and brush QTY 4,04/07/2018,130065,4.12,Revenue,System Hygiene Ltd,16572
Chorley Borough Council,http://statistics.data.gov.uk/id/local-authority/30UE,Economic Development,1096,Business Development & Growth,Cleaning Materials,40019,"Equipment, Furniture & Materia",5023,Please supply janitorial supplies as per e-mail,04/07/2018,130691,283.13,Revenue,System Hygiene Ltd,16572
Chorley Borough Council,http://statistics.data.gov.uk/id/local-authority/30UE,Service Management & Support,1009,Business Development & Growth,External Contractor,40198,Miscellaneous Expenses,5034,Mowing and bailing of Valley Bottoms (Parkers in Fields).  Bales are to be removed from site. carried out at the end of August,18/07/2018,130722,650.00,Revenue,T & L Kirkham,17058
Chorley Borough Council,http://statistics.data.gov.uk/id/local-authority/30UE,Unapportionable Central OHeads,1009,Policy & Governance,Copyright Licence Fees,40168,Miscellaneous Expenses,5034,"Invoice number 612426 Public Admin Licence, Professional Employees from 01 May 2018 to 30April 2019 Chorley Council",25/07/2018,131105,"1,064.16",Revenue,The Copyright Licensing Agency Ltd,17480
Chorley Borough Council,http://statistics.data.gov.uk/id/local-authority/30UE,Tourism,1039,Policy & Governance,Children's Activities,40188,Miscellaneous Expenses,5034,Arts and crafts provision at the Chorley Flower Show,25/07/2018,130891,400.00,Revenue,The Creation Station Merseyside,71522
Chorley Borough Council,http://statistics.data.gov.uk/id/local-authority/30UE,Central Support Services,1009,Business Development & Growth,Consultants` Fees,40077,Services,5027,Ecological survey works at Alker Lane,18/07/2018,130398,"9,780.00",Revenue,The Environment Partnership (TEP) Ltd,77359
Chorley Borough Council,http://statistics.data.gov.uk/id/local-authority/30UE,Unapportionable Central OHeads,1009,Business Development & Growth,Planned Maintenance,20006,Repairs Maintenance & Alts,5005,Blanket ppm order from June 2017,20/07/2018,131031,350.00,Revenue,The Guardian Shutter Co LTD,21769
Chorley Borough Council,http://statistics.data.gov.uk/id/local-authority/30UE,Unapportionable Central OHeads,1009,Business Development & Growth,Planned Maintenance,20006,Repairs Maintenance & Alts,5005,Blanket ppm order from June 2017,20/07/2018,131032,560.00,Revenue,The Guardian Shutter Co LTD,21769
Chorley Borough Council,http://statistics.data.gov.uk/id/local-authority/30UE,Central Support Services,1009,Customer & Digital,Miscellaneous Expenses,40200,Miscellaneous Expenses,5034,data protection fees,06/07/2018,130781,"2,900.00",Revenue,The Information Commissioner,16278
Chorley Borough Council,http://statistics.data.gov.uk/id/local-authority/30UE,Central Support Services,1009,Customer & Digital,Consultants` Fees,40077,Services,5027,1 Workshop Day @  600.00,20/07/2018,130302,600.00,Revenue,The Networking People (NorthWest) Ltd T/a TNP Ltd,73446
Chorley Borough Council,http://statistics.data.gov.uk/id/local-authority/30UE,Central Support Services,1009,Customer & Digital,Consultants` Fees,40077,Services,5027,5 days Professional services @600.00 = 3000,06/07/2018,130651,"3,000.00",Revenue,The Networking People (NorthWest) Ltd T/a TNP Ltd,73446
Chorley Borough Council,http://statistics.data.gov.uk/id/local-authority/30UE,Corporate Management,1008,Customer & Digital,Printing,40043,"Printing, Stationery & General",5026,"Chorley Council logo stickers, 5000, on rolls, with 200 stickers per roll, as per quote 10867",27/07/2018,131276,690.70,Revenue,The Print Quarter,17987
Chorley Borough Council,http://statistics.data.gov.uk/id/local-authority/30UE,Service Management & Support,1009,Customer & Digital,Grounds Maintenance Contractor,20043,Grounds Maintenance Costs,5013,Section felling of 1 x Horse chestnut tree over the highway near the Private Hospital at Euxton,18/07/2018,130983,550.00,Revenue,Treescape North West Ltd,17688
Chorley Borough Council,http://statistics.data.gov.uk/id/local-authority/30UE,Service Management & Support,1009,Customer & Digital,Grounds Maintenance Contractor,20043,Grounds Maintenance Costs,5013,as per quotation for reduction of large beech tree in Astley Park,25/07/2018,131165,395.00,Revenue,Treescape North West Ltd,17688
Chorley Borough Council,http://statistics.data.gov.uk/id/local-authority/30UE,Democratic Represent and  Mgnt,1007,Policy & Governance,Grants To Other Organisations,40127,Grants and Subscriptions,5031,councillor community grant,18/07/2018,130911,250.00,Revenue,Two Trees Community Garden,66384
Chorley Borough Council,http://statistics.data.gov.uk/id/local-authority/30UE,Service Management & Support,1009,Customer & Digital,Petrol,30005,Direct Transport Costs,5016,fiel,04/07/2018,130016,688.36,Revenue,Uk Fuels Ltd,57996
Chorley Borough Council,http://statistics.data.gov.uk/id/local-authority/30UE,Service Management & Support,1009,Customer & Digital,Petrol,30005,Direct Transport Costs,5016,unleaded 31/5/18 to 22/6/18,04/07/2018,130644,616.97,Revenue,Uk Fuels Ltd,57996
Chorley Borough Council,http://statistics.data.gov.uk/id/local-authority/30UE,Unapportionable Central OHeads,1009,Policy & Governance,Miscellaneous Expenses,40200,Miscellaneous Expenses,5034,,25/07/2018,131173,"1,522.82",Revenue,UK Healthcare (BDHSC),17241
Chorley Borough Council,http://statistics.data.gov.uk/id/local-authority/30UE,Unapportionable Central OHeads,1009,Customer & Digital,Service Fees,40056,Services,5027,2018-19 daily hybrid mail & annual billing,04/07/2018,130666,688.82,Revenue,UKMAIL Ltd (Mail),57758
Chorley Borough Council,http://statistics.data.gov.uk/id/local-authority/30UE,Unapportionable Central OHeads,1009,Customer & Digital,Service Fees,40056,Services,5027,2018-19 daily hybrid mail & annual billing,04/07/2018,130677,925.33,Revenue,UKMAIL Ltd (Mail),57758
Chorley Borough Council,http://statistics.data.gov.uk/id/local-authority/30UE,Unapportionable Central OHeads,1009,Customer & Digital,Service Fees,40056,Services,5027,2018-19 daily hybrid mail & annual billing,04/07/2018,130678,595.23,Revenue,UKMAIL Ltd (Mail),57758
Chorley Borough Council,http://statistics.data.gov.uk/id/local-authority/30UE,Unapportionable Central OHeads,1009,Customer & Digital,Service Fees,40056,Services,5027,2018-19 daily hybrid mail & annual billing,04/07/2018,130679,789.03,Revenue,UKMAIL Ltd (Mail),57758
Chorley Borough Council,http://statistics.data.gov.uk/id/local-authority/30UE,Unapportionable Central OHeads,1009,Customer & Digital,Service Fees,40056,Services,5027,2018-19 daily hybrid mail & annual billing,25/07/2018,131134,745.26,Revenue,UKMAIL Ltd (Mail),57758
Chorley Borough Council,http://statistics.data.gov.uk/id/local-authority/30UE,Unapportionable Central OHeads,1009,Customer & Digital,Service Fees,40056,Services,5027,2018-19 daily hybrid mail & annual billing,25/07/2018,131137,"1,422.68",Revenue,UKMAIL Ltd (Mail),57758
Chorley Borough Council,http://statistics.data.gov.uk/id/local-authority/30UE,Unapportionable Central OHeads,1009,Customer & Digital,Service Fees,40056,Services,5027,2018-19 daily hybrid mail & annual billing,25/07/2018,131140,605.76,Revenue,UKMAIL Ltd (Mail),57758
Chorley Borough Council,http://statistics.data.gov.uk/id/local-authority/30UE,Central Support Services,1009,Early Intervention,Miscellaneous Expenses,40200,Miscellaneous Expenses,5034,neighbourhood working,06/07/2018,130773,"2,000.00",Revenue,Ulnes Walton Parish Council,16210
Chorley Borough Council,http://statistics.data.gov.uk/id/local-authority/30UE,Business Support,1095,Business Development & Growth,Miscellaneous Expenses,40200,Miscellaneous Expenses,5034,For underwriting delinquent Business Loans for start up service.,06/07/2018,130752,500.00,Revenue,Unify Credit Union Ltd,55509
Chorley Borough Council,http://statistics.data.gov.uk/id/local-authority/30UE,Control Accounts,Control,Policy & Governance,General Balances,100,Balance Sheet,Balance,monthly deds from payroll,27/07/2018,131206,"1,687.16",Revenue,Unify Credit Union Ltd,55509
Chorley Borough Council,http://statistics.data.gov.uk/id/local-authority/30UE,Planning Policy,1092,Policy & Governance,Professional Fees,40063,Services,5027,Urban Vision support for May,04/07/2018,130653,"2,383.12",Revenue,Urban Vision Partnership Ltd,21181
Chorley Borough Council,http://statistics.data.gov.uk/id/local-authority/30UE,Corporate Management,1008,Customer & Digital,Unitary Payment(S),50009,Private Contractors,5042,Provision of waste and recycling collection service and ancillary services for 2018/19.,04/07/2018,130595,"283,978.53",Revenue,Veolia ES (UK) Ltd,20748
Chorley Borough Council,http://statistics.data.gov.uk/id/local-authority/30UE,Corporate Management,1008,Customer & Digital,Unitary Payment(S),50009,Private Contractors,5042,Provision of waste and recycling collection service and ancillary services for 2018/19.,04/07/2018,130665,"283,907.53",Revenue,Veolia ES (UK) Ltd,20748
Chorley Borough Council,http://statistics.data.gov.uk/id/local-authority/30UE,Central Support Services,1009,Customer & Digital,Telephones - Rentals,40083,Communication and Computing,5028,cctv clayton brook village,06/07/2018,130643,"2,145.00",Revenue,Virgin Media Payments Ltd,17632
Chorley Borough Council,http://statistics.data.gov.uk/id/local-authority/30UE,Central Support Services,1009,Customer & Digital,Internet Charges,40104,Communication and Computing,5028,,11/07/2018,130900,"1,494.02",Revenue,Virgin Media Payments Ltd,17632
Chorley Borough Council,http://statistics.data.gov.uk/id/local-authority/30UE,Central Support Services,1009,Customer & Digital,Internet Charges,40104,Communication and Computing,5028,telephony charges,11/07/2018,130901,"1,598.77",Revenue,Virgin Media Payments Ltd,17632
Chorley Borough Council,http://statistics.data.gov.uk/id/local-authority/30UE,Central Support Services,1009,Customer & Digital,Internet Charges,40104,Communication and Computing,5028,late payments & interest charges,11/07/2018,130901,135.40,Revenue,Virgin Media Payments Ltd,17632
Chorley Borough Council,http://statistics.data.gov.uk/id/local-authority/30UE,Central Support Services,1009,Customer & Digital,Internet Charges,40104,Communication and Computing,5028,,11/07/2018,130903,"1,580.99",Revenue,Virgin Media Payments Ltd,17632
Chorley Borough Council,http://statistics.data.gov.uk/id/local-authority/30UE,Central Support Services,1009,Customer & Digital,Computer Equipment - Security,40106,Communication and Computing,5028,01-Jul-18,11/07/2018,130810,"3,921.43",Revenue,Vodafone Ltd,60180
Chorley Borough Council,http://statistics.data.gov.uk/id/local-authority/30UE,Unapportionable Central OHeads,1009,Policy & Governance,Car Leasing Payment,14100,Direct Employee Expenses,5001,NAME REDACTED,04/07/2018,130621,272.15,Revenue,VWFS UK Ltd T/A Volkswagen Group Leasing,56010
Chorley Borough Council,http://statistics.data.gov.uk/id/local-authority/30UE,Unapportionable Central OHeads,1009,Policy & Governance,Car Leasing Payment,14100,Direct Employee Expenses,5001,,04/07/2018,130621,24.40,Revenue,VWFS UK Ltd T/A Volkswagen Group Leasing,56010
Chorley Borough Council,http://statistics.data.gov.uk/id/local-authority/30UE,Unapportionable Central OHeads,1009,Policy & Governance,Car Leasing Payment,14100,Direct Employee Expenses,5001,NAME REDACTED,04/07/2018,130622,308.26,Revenue,VWFS UK Ltd T/A Volkswagen Group Leasing,56010
Chorley Borough Council,http://statistics.data.gov.uk/id/local-authority/30UE,Unapportionable Central OHeads,1009,Policy & Governance,Car Leasing Payment,14100,Direct Employee Expenses,5001,,04/07/2018,130622,26.86,Revenue,VWFS UK Ltd T/A Volkswagen Group Leasing,56010
Chorley Borough Council,http://statistics.data.gov.uk/id/local-authority/30UE,Corporate Management,1008,Business Development & Growth,Sewerage/Environment Svcs,20024,Water Services,5009,public conv adlington,11/07/2018,130753,135.94,Revenue,Water-plus,17926
Chorley Borough Council,http://statistics.data.gov.uk/id/local-authority/30UE,Corporate Management,1008,Business Development & Growth,Sewerage/Environment Svcs,20024,Water Services,5009,cemetery hse adlington,11/07/2018,130753,384.86,Revenue,Water-plus,17926
Chorley Borough Council,http://statistics.data.gov.uk/id/local-authority/30UE,Unapportionable Central OHeads,1009,Business Development & Growth,Sewerage/Environment Svcs,20024,Water Services,5009,stores & office bengal,11/07/2018,130753,"7,918.34",Revenue,Water-plus,17926
Chorley Borough Council,http://statistics.data.gov.uk/id/local-authority/30UE,Democratic Represent and  Mgnt,1007,Business Development & Growth,Sewerage/Environment Svcs,20024,Water Services,5009,eaves green,11/07/2018,130753,"1,702.72",Revenue,Water-plus,17926
Chorley Borough Council,http://statistics.data.gov.uk/id/local-authority/30UE,Parking Services,1066,Business Development & Growth,Sewerage/Environment Svcs,20024,Water Services,5009,long stay fleet st,11/07/2018,130753,298.52,Revenue,Water-plus,17926
Chorley Borough Council,http://statistics.data.gov.uk/id/local-authority/30UE,Democratic Represent and  Mgnt,1007,Business Development & Growth,Sewerage/Environment Svcs,20024,Water Services,5009,astley park,11/07/2018,130753,"1,702.72",Revenue,Water-plus,17926
Chorley Borough Council,http://statistics.data.gov.uk/id/local-authority/30UE,Democratic Represent and  Mgnt,1007,Business Development & Growth,Sewerage/Environment Svcs,20024,Water Services,5009,car park hallgate,11/07/2018,130753,406.08,Revenue,Water-plus,17926
Chorley Borough Council,http://statistics.data.gov.uk/id/local-authority/30UE,Economic Development,1096,Business Development & Growth,Sewerage/Environment Svcs,20024,Water Services,5009,market ground,11/07/2018,130753,"1,702.72",Revenue,Water-plus,17926
Chorley Borough Council,http://statistics.data.gov.uk/id/local-authority/30UE,Corporate Management,1008,Business Development & Growth,Sewerage/Environment Svcs,20024,Water Services,5009,public conv market place,11/07/2018,130753,135.94,Revenue,Water-plus,17926
Chorley Borough Council,http://statistics.data.gov.uk/id/local-authority/30UE,Unapportionable Central OHeads,1009,Business Development & Growth,Sewerage/Environment Svcs,20024,Water Services,5009,town hall,11/07/2018,130753,"1,702.72",Revenue,Water-plus,17926
Chorley Borough Council,http://statistics.data.gov.uk/id/local-authority/30UE,Unapportionable Central OHeads,1009,Business Development & Growth,Sewerage/Environment Svcs,20024,Water Services,5009,63/65 union,11/07/2018,130753,"1,702.72",Revenue,Water-plus,17926
Chorley Borough Council,http://statistics.data.gov.uk/id/local-authority/30UE,Economic Development,1096,Business Development & Growth,Sewerage/Environment Svcs,20024,Water Services,5009,market ground union st,11/07/2018,130753,834.10,Revenue,Water-plus,17926
Chorley Borough Council,http://statistics.data.gov.uk/id/local-authority/30UE,Parking Services,1066,Business Development & Growth,Sewerage/Environment Svcs,20024,Water Services,5009,car park union st,11/07/2018,130753,614.60,Revenue,Water-plus,17926
Chorley Borough Council,http://statistics.data.gov.uk/id/local-authority/30UE,Parking Services,1066,Business Development & Growth,Sewerage/Environment Svcs,20024,Water Services,5009,car park west st,11/07/2018,130753,"7,918.34",Revenue,Water-plus,17926
Chorley Borough Council,http://statistics.data.gov.uk/id/local-authority/30UE,Democratic Represent and  Mgnt,1007,Business Development & Growth,Sewerage/Environment Svcs,20024,Water Services,5009,village ctr,11/07/2018,130753,337.68,Revenue,Water-plus,17926
Chorley Borough Council,http://statistics.data.gov.uk/id/local-authority/30UE,Corporate Management,1008,Business Development & Growth,Sewerage/Environment Svcs,20024,Water Services,5009,public conv adlington,11/07/2018,130754,142.91,Revenue,Water-plus,17926
Chorley Borough Council,http://statistics.data.gov.uk/id/local-authority/30UE,Corporate Management,1008,Business Development & Growth,Sewerage/Environment Svcs,20024,Water Services,5009,cemetery Hse adlington,11/07/2018,130754,403.97,Revenue,Water-plus,17926
Chorley Borough Council,http://statistics.data.gov.uk/id/local-authority/30UE,Unapportionable Central OHeads,1009,Business Development & Growth,Sewerage/Environment Svcs,20024,Water Services,5009,stores & office bengal,11/07/2018,130754,"8,324.56",Revenue,Water-plus,17926
Chorley Borough Council,http://statistics.data.gov.uk/id/local-authority/30UE,Democratic Represent and  Mgnt,1007,Business Development & Growth,Sewerage/Environment Svcs,20024,Water Services,5009,eavesgreen,11/07/2018,130754,"1,790.06",Revenue,Water-plus,17926
Chorley Borough Council,http://statistics.data.gov.uk/id/local-authority/30UE,Parking Services,1066,Business Development & Growth,Sewerage/Environment Svcs,20024,Water Services,5009,longtay fleet st,11/07/2018,130754,313.48,Revenue,Water-plus,17926
Chorley Borough Council,http://statistics.data.gov.uk/id/local-authority/30UE,Democratic Represent and  Mgnt,1007,Business Development & Growth,Sewerage/Environment Svcs,20024,Water Services,5009,astley park village,11/07/2018,130754,"1,790.06",Revenue,Water-plus,17926
Chorley Borough Council,http://statistics.data.gov.uk/id/local-authority/30UE,Democratic Represent and  Mgnt,1007,Business Development & Growth,Sewerage/Environment Svcs,20024,Water Services,5009,car park hallgate,11/07/2018,130754,426.43,Revenue,Water-plus,17926
Chorley Borough Council,http://statistics.data.gov.uk/id/local-authority/30UE,Economic Development,1096,Business Development & Growth,Sewerage/Environment Svcs,20024,Water Services,5009,market grounds,11/07/2018,130754,"1,790.06",Revenue,Water-plus,17926
Chorley Borough Council,http://statistics.data.gov.uk/id/local-authority/30UE,Corporate Management,1008,Business Development & Growth,Sewerage/Environment Svcs,20024,Water Services,5009,public con market place,11/07/2018,130754,142.91,Revenue,Water-plus,17926
Chorley Borough Council,http://statistics.data.gov.uk/id/local-authority/30UE,Unapportionable Central OHeads,1009,Business Development & Growth,Sewerage/Environment Svcs,20024,Water Services,5009,town hall,11/07/2018,130754,"1,790.06",Revenue,Water-plus,17926
Chorley Borough Council,http://statistics.data.gov.uk/id/local-authority/30UE,Unapportionable Central OHeads,1009,Business Development & Growth,Sewerage/Environment Svcs,20024,Water Services,5009,63/65 union st,11/07/2018,130754,"1,790.06",Revenue,Water-plus,17926
Chorley Borough Council,http://statistics.data.gov.uk/id/local-authority/30UE,Economic Development,1096,Business Development & Growth,Sewerage/Environment Svcs,20024,Water Services,5009,market ground union st,11/07/2018,130754,875.90,Revenue,Water-plus,17926
Chorley Borough Council,http://statistics.data.gov.uk/id/local-authority/30UE,Parking Services,1066,Business Development & Growth,Sewerage/Environment Svcs,20024,Water Services,5009,car park union street,11/07/2018,130754,645.40,Revenue,Water-plus,17926
Chorley Borough Council,http://statistics.data.gov.uk/id/local-authority/30UE,Parking Services,1066,Business Development & Growth,Sewerage/Environment Svcs,20024,Water Services,5009,car park west st,11/07/2018,130754,"8,324.56",Revenue,Water-plus,17926
Chorley Borough Council,http://statistics.data.gov.uk/id/local-authority/30UE,Democratic Represent and  Mgnt,1007,Business Development & Growth,Sewerage/Environment Svcs,20024,Water Services,5009,village ctr grt greens ln BB,11/07/2018,130754,354.98,Revenue,Water-plus,17926
Chorley Borough Council,http://statistics.data.gov.uk/id/local-authority/30UE,Homelessness,1075,Business Development & Growth,Water - Unmetered Supply,20023,Water Services,5009,1/4/2018 to 31/3/2019,13/07/2018,130823,"3,744.20",Revenue,Water-plus,17926
Chorley Borough Council,http://statistics.data.gov.uk/id/local-authority/30UE,Corporate Management,1008,Business Development & Growth,Water - Metered Supplies,20022,Water Services,5009,4/5/18 to 15/7/18,20/07/2018,131102,"1,925.05",Revenue,Water-plus,17926
Chorley Borough Council,http://statistics.data.gov.uk/id/local-authority/30UE,Unapportionable Central OHeads,1009,Business Development & Growth,Water - Metered Supplies,20022,Water Services,5009,4/5/18 to 15/7/18,20/07/2018,131103,697.12,Revenue,Water-plus,17926
Chorley Borough Council,http://statistics.data.gov.uk/id/local-authority/30UE,Unapportionable Central OHeads,1009,Policy & Governance,HR Recruitment - Advertising,15300,Indirect Employee Expenses,5002,Advertising for Business Advisors,27/07/2018,131325,299.00,Revenue,Websense Recruit Ltd T/A Fill My Vacancy,76200
Chorley Borough Council,http://statistics.data.gov.uk/id/local-authority/30UE,Service Management & Support,1009,Customer & Digital,Vehicles and Plant Maintenance,30045,Direct Transport Costs,5016,"Nearside rear hub unit and brake.Strip hub and replace bearings and seal. Reassemble.Top up rear axle oil,dated 29/06/2018",13/07/2018,130919,313.00,Revenue,Wrekamendid Services Ltd,21188
Chorley Borough Council,http://statistics.data.gov.uk/id/local-authority/30UE,Service Management & Support,1009,Customer & Digital,Vehicles and Plant Maintenance,30045,Direct Transport Costs,5016,"Carried out nitrogen pressure test of air conditioning system, locate hose, rubbed through and holed. Cut out bad section of hose",13/07/2018,130942,445.00,Revenue,Wrekamendid Services Ltd,21188
Chorley Borough Council,http://statistics.data.gov.uk/id/local-authority/30UE,Central Support Services,1009,Customer & Digital,Computer - Support Services,40111,Communication and Computing,5028,Charge for the period 6 January 2018 to 5 April 2018 37 copies used at GBP0.24260 per copy 8.98,20/07/2018,130736,392.21,Revenue,Xeretec Document Solutions,20052
Chorley Borough Council,http://statistics.data.gov.uk/id/local-authority/30UE,Central Support Services,1009,Early Intervention,Miscellaneous Expenses,40200,Miscellaneous Expenses,5034,Training fees for delivery of CSE BLAST `Not just our daughters` - Training provider Yorkshire MESMAC,25/07/2018,131208,806.05,Revenue,Yorkshire MESMAC Ltd,77149
